Workbook

Sheet Formulario
B1: Cotiza tu plan de EPS Individual 2023
B2: Aportes vigentes para la venta desde el 01/08/2023 al 30/04/2024 | J2: Confirmar | L2: Edad | M2: Parentesco | N2: Plan | O2: Modalidad de Pago
B4: ¿Qué tipo de plan EPS has tenido? | D4: 1 | J4: Plan Regular | K4: 1 | L4: 0 años | M4: Cónyuge | N4: Base | O4: Contado (1 Cuota)
J5: Plan Padres | K5: 2 | L5: 1 año | M5: Conviviente | N5: Plus | O5: Aportes 12 cuotas Débito Automático (TCEA 4%)
B6: Edad del titular: | J6: Plan Jubilados | K6: 3 | L6: 2 años | M6: Hijo | N6: Premium | O6: Aportes 12 cuotas Cuponera (TCEA 17.5%)
J7: Ninguno | K7: 4 | L7: 3 años | M7: Hija | N7: Todos | O7: Todos
B8: ¿Deseas incluir a tu familia? | D8: 2 | K8: 5 | L8: 4 años
K9: 6 | L9: 5 años
D10: Parentesco | F10: =+IFERROR(VLOOKUP(D6,K:L,2,0),"") ->  | J10: =+F10 ->  | K10: 7 | L10: 6 años
C11: Dependiente 1: | E11: Edad: | J11: =IF(D11<>"",IF(OR(D11="Hijo",D11="Hija"),D11&" "&F11,F11),"") ->  | K11: 8 | L11: 7 años | N11: =+IF(D11<>"",1,0) -> 0 | O11: =+IF(F11<>"",1,0) -> 0 | P11: =+IF(O11=N11,0,1) -> 0
C12: Dependiente 2: | E12: Edad: | J12: =IF(D12<>"",IF(OR(D12="Hijo",D12="Hija"),D12&" "&F12,F12),"") ->  | K12: 9 | L12: 8 años | N12: =+IF(D12<>"",1,0) -> 0 | O12: =+IF(F12<>"",1,0) -> 0 | P12: =+IF(O12=N12,0,1) -> 0
C13: Dependiente 3: | E13: Edad: | K13: 10 | L13: 9 años | N13: 0 | O13: 0 | P13: 0
C14: Dependiente 4: | E14: Edad: | K14: 11 | L14: 10 años | N14: 0 | O14: 0 | P14: 0
C15: Dependiente 5: | E15: Edad: | K15: 12 | L15: 11 años | N15: 0 | O15: 0 | P15: 0
C16: Dependiente 6: | E16: Edad: | K16: 13 | L16: 12 años | N16: 0 | O16: 0 | P16: 0
K17: 14 | L17: 13 años | O17: ERRORES | P17: =SUM(P11:P16) -> 0
J18: Incluir | K18: 15 | L18: 14 años
B19: Plan elegido | J19: SI | K19: 16 | L19: 15 años | N19: Base Senior
J20: NO | K20: 17 | L20: 16 años | N20: Plus Senior
C21: Modalidad de Pago | K21: 18 | L21: 17 años | N21: Todos
K22: 19 | L22: 18 años
K23: 20 | L23: 19 años
K24: 21 | L24: 20 años
B25: Resultado de la cotización | K25: 22 | L25: 21 años
K26: 23 | L26: 22 años
C27: Aporte Anual - Pago al contado (Cuponera o Débito Automático) | K27: 24 | L27: 23 años
C28: Edad | D28: Base | E28: Plus | F28: Premium | K28: 25 | L28: 24 años
K29: 26 | L29: 25 años
K30: 27 | L30: 26 años
K31: 28 | L31: 27 años
K32: 29 | L32: 28 años
K33: 30 | L33: 29 años
K34: 31 | L34: 30 años
K35: 32 | L35: 31 años
C36: Total_Pagar | D36: =SUM(D29:D35) -> 0 | E36: =SUM(E29:E35) -> 0 | F36: =SUM(F29:F35) -> 0 | K36: 33 | L36: 32 años
K37: 34 | L37: 33 años
C38: Aportes Mensuales (12 cuotas) - Débito Automático (TCEA 4%) | K38: 35 | L38: 34 años
C39: Edad | D39: Base | E39: Plus | F39: Premium | K39: 36 | L39: 35 años
K40: 37 | L40: 36 años
K41: 38 | L41: 37 años
K42: 39 | L42: 38 años
K43: 40 | L43: 39 años
K44: 41 | L44: 40 años
K45: 42 | L45: 41 años
K46: 43 | L46: 42 años
C47: Total_Pagar | D47: =SUM(D40:D46) -> 0 | E47: =SUM(E40:E46) -> 0 | F47: =SUM(F40:F46) -> 0 | K47: 44 | L47: 43 años
K48: 45 | L48: 44 años
C49: Aportes Mensuales (12 cuotas) - Cuponera (TCEA 17.5%) | K49: 46 | L49: 45 años
C50: Edad | D50: Base | E50: Plus | F50: Premium | K50: 47 | L50: 46 años
K51: 48 | L51: 47 años
K52: 49 | L52: 48 años
K53: 50 | L53: 49 años
K54: 51 | L54: 50 años
K55: 52 | L55: 51 años
K56: 53 | L56: 52 años
K57: 54 | L57: 53 años
C58: Total_Pagar | D58: =SUM(D51:D57) -> 0 | E58: 0 | F58: 0 | K58: 55 | L58: 54 años
K59: 56 | L59: 55 años
K60: 57 | L60: 56 años
K61: 58 | L61: 57 años
K62: 59 | L62: 58 años
K63: 60 | L63: 59 años
K64: 61 | L64: 60 años
K65: 62 | L65: 61 años
K66: 63 | L66: 62 años
K67: 64 | L67: 63 años
K68: 65 | L68: 64 años
K69: 66 | L69: 65 años
K70: 67 | L70: 66 años
K71: 68 | L71: 67 años
K72: 69 | L72: 68 años
K73: 70 | L73: 69 años
K74: 71 | L74: 70 años
K75: 72 | L75: 71 años
K76: 73 | L76: 72 años
K77: 74 | L77: 73 años
K78: 75 | L78: 74 años
K79: 76 | L79: 75 años
K80: 77 | L80: 76 años
K81: 78 | L81: 77 años
K82: 79 | L82: 78 años
K83: 80 | L83: 79 años
K84: 81 | L84: 80 años
K85: 82 | L85: 81 años
K86: 83 | L86: 82 años
K87: 84 | L87: 83 años
K88: 85 | L88: 84 años
K89: 86 | L89: 85 años
K90: 87 | L90: 86 años
K91: 88 | L91: 87 años
K92: 89 | L92: 88 años
K93: 90 | L93: 89 años
K94: 91 | L94: 90 años
K95: 92 | L95: 91 años
K96: 93 | L96: 92 años
K97: 94 | L97: 93 años
K98: 95 | L98: 94 años
K99: 96 | L99: 95 años
K100: 97 | L100: 96 años
K101: 98 | L101: 97 años
K102: 99 | L102: 98 años
K103: 100 | L103: 99 años
K104: 101 | L104: 100 años

Sheet Aportes 2023-3 (hidden)
B1: APORTES EPS INDIVIDUAL
B2: PASS MACRO | C2: Doge2729 | J2: 0.08511723434 | Q2: 0.09084241725
B3: Aporte Pago al Contado | I3: Aportes 12 cuotas Débito Automático (TCEA 4%) | P3: Aportes 12 cuotas Cuponera (TCEA 17.5%)
B4: Edad | C4: BASE | D4: PLUS | E4: PREMIUM | F4: BASE SENIOR | G4: PLUS SENIOR | I4: Edad | J4: BASE | K4: PLUS | L4: PREMIUM | M4: BASE SENIOR | N4: PLUS SENIOR | P4: Edad | Q4: BASE | R4: PLUS | S4: PREMIUM | T4: BASE SENIOR | U4: PLUS SENIOR
B5: Hijo 0 años | C5: 2472.29893 | D5: 2998.191781 | E5: 4081.150685 | F5: 2295 | G5: 2548.463014 | I5: Hijo 0 años | J5: =C5*$J$2 -> 210.4352474 | K5: =D5*$J$2 -> 255.1977924 | L5: =E5*$J$2 -> 347.3762592 | M5: =F5*$J$2 -> 195.3440528 | N5: =G5*$J$2 -> 216.9181235 | P5: Hijo 0 años | Q5: =C5*$Q$2 -> 224.589611 | R5: =D5*$Q$2 -> 272.3629888 | S5: =E5*$Q$2 -> 370.7415934 | T5: =F5*$Q$2 -> 208.4833476 | U5: =G5*$Q$2 -> 231.5085404
B6: Hijo 1 año | C6: 2472.29893 | D6: 2998.191781 | E6: 4081.150685 | F6: 2295 | G6: 2548.463014 | I6: Hijo 1 año | J6: =C6*$J$2 -> 210.4352474 | K6: 255.1977924 | L6: 347.3762592 | M6: 195.3440528 | N6: 216.9181235 | P6: Hijo 1 año | Q6: =C6*$Q$2 -> 224.589611 | R6: 272.3629888 | S6: 370.7415934 | T6: 208.4833476 | U6: 231.5085404
B7: Hijo 2 años | C7: 2472.29893 | D7: 2998.191781 | E7: 4081.150685 | F7: 2295 | G7: 2548.463014 | I7: Hijo 2 años | J7: 210.4352474 | K7: 255.1977924 | L7: 347.3762592 | M7: 195.3440528 | N7: 216.9181235 | P7: Hijo 2 años | Q7: 224.589611 | R7: 272.3629888 | S7: 370.7415934 | T7: 208.4833476 | U7: 231.5085404
B8: Hijo 3 años | C8: 2472.29893 | D8: 2998.191781 | E8: 4081.150685 | F8: 2295 | G8: 2548.463014 | I8: Hijo 3 años | J8: 210.4352474 | K8: 255.1977924 | L8: 347.3762592 | M8: 195.3440528 | N8: 216.9181235 | P8: Hijo 3 años | Q8: 224.589611 | R8: 272.3629888 | S8: 370.7415934 | T8: 208.4833476 | U8: 231.5085404
B9: Hijo 4 años | C9: 2472.29893 | D9: 2998.191781 | E9: 4081.150685 | F9: 2295 | G9: 2548.463014 | I9: Hijo 4 años | J9: 210.4352474 | K9: 255.1977924 | L9: 347.3762592 | M9: 195.3440528 | N9: 216.9181235 | P9: Hijo 4 años | Q9: 224.589611 | R9: 272.3629888 | S9: 370.7415934 | T9: 208.4833476 | U9: 231.5085404
B10: Hijo 5 años | C10: 2472.29893 | D10: 2998.191781 | E10: 4081.150685 | F10: 2295 | G10: 2548.463014 | I10: Hijo 5 años | J10: 210.4352474 | K10: 255.1977924 | L10: 347.3762592 | M10: 195.3440528 | N10: 216.9181235 | P10: Hijo 5 años | Q10: 224.589611 | R10: 272.3629888 | S10: 370.7415934 | T10: 208.4833476 | U10: 231.5085404
B11: Hijo 6 años | C11: 2472.29893 | D11: 2998.191781 | E11: 4081.150685 | F11: 2295 | G11: 2548.463014 | I11: Hijo 6 años | J11: 210.4352474 | K11: 255.1977924 | L11: 347.3762592 | M11: 195.3440528 | N11: 216.9181235 | P11: Hijo 6 años | Q11: 224.589611 | R11: 272.3629888 | S11: 370.7415934 | T11: 208.4833476 | U11: 231.5085404
B12: Hijo 7 años | C12: 2472.29893 | D12: 2998.191781 | E12: 4081.150685 | F12: 2295 | G12: 2548.463014 | I12: Hijo 7 años | J12: 210.4352474 | K12: 255.1977924 | L12: 347.3762592 | M12: 195.3440528 | N12: 216.9181235 | P12: Hijo 7 años | Q12: 224.589611 | R12: 272.3629888 | S12: 370.7415934 | T12: 208.4833476 | U12: 231.5085404
B13: Hijo 8 años | C13: 2472.29893 | D13: 2998.191781 | E13: 4081.150685 | F13: 2295 | G13: 2548.463014 | I13: Hijo 8 años | J13: 210.4352474 | K13: 255.1977924 | L13: 347.3762592 | M13: 195.3440528 | N13: 216.9181235 | P13: Hijo 8 años | Q13: 224.589611 | R13: 272.3629888 | S13: 370.7415934 | T13: 208.4833476 | U13: 231.5085404
B14: Hijo 9 años | C14: 2472.29893 | D14: 2998.191781 | E14: 4081.150685 | F14: 2295 | G14: 2548.463014 | I14: Hijo 9 años | J14: 210.4352474 | K14: 255.1977924 | L14: 347.3762592 | M14: 195.3440528 | N14: 216.9181235 | P14: Hijo 9 años | Q14: 224.589611 | R14: 272.3629888 | S14: 370.7415934 | T14: 208.4833476 | U14: 231.5085404
B15: Hijo 10 años | C15: 2472.29893 | D15: 2998.191781 | E15: 4081.150685 | F15: 2295 | G15: 2548.463014 | I15: Hijo 10 años | J15: 210.4352474 | K15: 255.1977924 | L15: 347.3762592 | M15: 195.3440528 | N15: 216.9181235 | P15: Hijo 10 años | Q15: 224.589611 | R15: 272.3629888 | S15: 370.7415934 | T15: 208.4833476 | U15: 231.5085404
B16: Hijo 11 años | C16: 2472.29893 | D16: 2998.191781 | E16: 4081.150685 | F16: 2295 | G16: 2548.463014 | I16: Hijo 11 años | J16: 210.4352474 | K16: 255.1977924 | L16: 347.3762592 | M16: 195.3440528 | N16: 216.9181235 | P16: Hijo 11 años | Q16: 224.589611 | R16: 272.3629888 | S16: 370.7415934 | T16: 208.4833476 | U16: 231.5085404
B17: Hijo 12 años | C17: 2472.29893 | D17: 2998.191781 | E17: 4081.150685 | F17: 2295 | G17: 2548.463014 | I17: Hijo 12 años | J17: 210.4352474 | K17: 255.1977924 | L17: 347.3762592 | M17: 195.3440528 | N17: 216.9181235 | P17: Hijo 12 años | Q17: 224.589611 | R17: 272.3629888 | S17: 370.7415934 | T17: 208.4833476 | U17: 231.5085404
B18: Hijo 13 años | C18: 2472.29893 | D18: 2998.191781 | E18: 4081.150685 | F18: 2295 | G18: 2548.463014 | I18: Hijo 13 años | J18: 210.4352474 | K18: 255.1977924 | L18: 347.3762592 | M18: 195.3440528 | N18: 216.9181235 | P18: Hijo 13 años | Q18: 224.589611 | R18: 272.3629888 | S18: 370.7415934 | T18: 208.4833476 | U18: 231.5085404
B19: Hijo 14 años | C19: 2472.29893 | D19: 2998.191781 | E19: 4081.150685 | F19: 2295 | G19: 2548.463014 | I19: Hijo 14 años | J19: 210.4352474 | K19: 255.1977924 | L19: 347.3762592 | M19: 195.3440528 | N19: 216.9181235 | P19: Hijo 14 años | Q19: 224.589611 | R19: 272.3629888 | S19: 370.7415934 | T19: 208.4833476 | U19: 231.5085404
B20: Hijo 15 años | C20: 2472.29893 | D20: 2998.191781 | E20: 4081.150685 | F20: 2295 | G20: 2548.463014 | I20: Hijo 15 años | J20: 210.4352474 | K20: 255.1977924 | L20: 347.3762592 | M20: 195.3440528 | N20: 216.9181235 | P20: Hijo 15 años | Q20: 224.589611 | R20: 272.3629888 | S20: 370.7415934 | T20: 208.4833476 | U20: 231.5085404
B21: Hijo 16 años | C21: 2472.29893 | D21: 2998.191781 | E21: 4081.150685 | F21: 2295 | G21: 2548.463014 | I21: Hijo 16 años | J21: 210.4352474 | K21: 255.1977924 | L21: 347.3762592 | M21: 195.3440528 | N21: 216.9181235 | P21: Hijo 16 años | Q21: 224.589611 | R21: 272.3629888 | S21: 370.7415934 | T21: 208.4833476 | U21: 231.5085404
B22: Hijo 17 años | C22: 2472.29893 | D22: 2998.191781 | E22: 4081.150685 | F22: 2295 | G22: 2548.463014 | I22: Hijo 17 años | J22: 210.4352474 | K22: 255.1977924 | L22: 347.3762592 | M22: 195.3440528 | N22: 216.9181235 | P22: Hijo 17 años | Q22: 224.589611 | R22: 272.3629888 | S22: 370.7415934 | T22: 208.4833476 | U22: 231.5085404
B23: Hijo 18 años | C23: 2562.207989 | D23: 3078.410959 | E23: 4131.287671 | F23: 2380 | G23: 2616.649315 | I23: Hijo 18 años | J23: 218.0880578 | K23: 262.025827 | L23: 351.6437808 | M23: 202.5790177 | N23: 222.7219529 | P23: Hijo 18 años | Q23: 232.7571672 | R23: 279.6502928 | S23: 375.2961584 | T23: 216.2049531 | U23: 237.7027489
B24: Hijo 19 años | C24: 2562.207989 | D24: 3078.410959 | E24: 4131.287671 | F24: 2380 | G24: 2616.649315 | I24: Hijo 19 años | J24: 218.0880578 | K24: 262.025827 | L24: 351.6437808 | M24: 202.5790177 | N24: 222.7219529 | P24: Hijo 19 años | Q24: 232.7571672 | R24: 279.6502928 | S24: 375.2961584 | T24: 216.2049531 | U24: 237.7027489
B25: Hijo 20 años | C25: 2562.207989 | D25: 3078.410959 | E25: 4131.287671 | F25: 2380 | G25: 2616.649315 | I25: Hijo 20 años | J25: 218.0880578 | K25: 262.025827 | L25: 351.6437808 | M25: 202.5790177 | N25: 222.7219529 | P25: Hijo 20 años | Q25: 232.7571672 | R25: 279.6502928 | S25: 375.2961584 | T25: 216.2049531 | U25: 237.7027489
B26: Hijo 21 años | C26: 2562.207989 | D26: 3078.410959 | E26: 4131.287671 | F26: 2380 | G26: 2616.649315 | I26: Hijo 21 años | J26: 218.0880578 | K26: 262.025827 | L26: 351.6437808 | M26: 202.5790177 | N26: 222.7219529 | P26: Hijo 21 años | Q26: 232.7571672 | R26: 279.6502928 | S26: 375.2961584 | T26: 216.2049531 | U26: 237.7027489
B27: Hijo 22 años | C27: 2562.207989 | D27: 3078.410959 | E27: 4131.287671 | F27: 2380 | G27: 2616.649315 | I27: Hijo 22 años | J27: 218.0880578 | K27: 262.025827 | L27: 351.6437808 | M27: 202.5790177 | N27: 222.7219529 | P27: Hijo 22 años | Q27: 232.7571672 | R27: 279.6502928 | S27: 375.2961584 | T27: 216.2049531 | U27: 237.7027489
B28: Hijo 23 años | C28: 2562.207989 | D28: 3078.410959 | E28: 4131.287671 | F28: 2380 | G28: 2616.649315 | I28: Hijo 23 años | J28: 218.0880578 | K28: 262.025827 | L28: 351.6437808 | M28: 202.5790177 | N28: 222.7219529 | P28: Hijo 23 años | Q28: 232.7571672 | R28: 279.6502928 | S28: 375.2961584 | T28: 216.2049531 | U28: 237.7027489
B29: Hijo 24 años | C29: 2562.207989 | D29: 3078.410959 | E29: 4131.287671 | F29: 2380 | G29: 2616.649315 | I29: Hijo 24 años | J29: 218.0880578 | K29: 262.025827 | L29: 351.6437808 | M29: 202.5790177 | N29: 222.7219529 | P29: Hijo 24 años | Q29: 232.7571672 | R29: 279.6502928 | S29: 375.2961584 | T29: 216.2049531 | U29: 237.7027489
B30: Hijo 25 años | C30: 2562.207989 | D30: 3078.410959 | E30: 4131.287671 | F30: 2380 | G30: 2616.649315 | I30: Hijo 25 años | J30: 218.0880578 | K30: 262.025827 | L30: 351.6437808 | M30: 202.5790177 | N30: 222.7219529 | P30: Hijo 25 años | Q30: 232.7571672 | R30: 279.6502928 | S30: 375.2961584 | T30: 216.2049531 | U30: 237.7027489
B31: Hijo 26 años | C31: 2608.927172 | D31: 3379.232877 | E31: 4442.136986 | F31: 2422.5 | G31: 2872.347945 | I31: Hijo 26 años | J31: 222.0646654 | K31: 287.6309566 | L31: 378.1024148 | M31: 206.1965002 | N31: 244.4863131 | P31: Hijo 26 años | Q31: 237.0012507 | R31: 306.977683 | S31: 403.5344616 | T31: 220.0657558 | U31: 260.9310305
B32: Hijo 27 años | C32: 2723.401886 | D32: 3770.30137 | E32: 4883.342466 | F32: 2524.5 | G32: 3204.756164 | I32: Hijo 27 años | J32: 231.8084365 | K32: 320.9176252 | L32: 415.656605 | M32: 214.8784581 | N32: 272.7799814 | P32: Hijo 27 años | Q32: 247.4004105 | R32: 342.5032902 | S32: 443.6146339 | T32: 229.3316824 | U32: 291.1277967
B33: Hijo 28 años | C33: 2805.653166 | D33: 3900.657534 | E33: 5113.972603 | F33: 2601 | G33: 3315.558904 | I33: Hijo 28 años | J33: 238.809438 | K33: 332.0131814 | L33: 435.2872044 | M33: 221.3899265 | N33: 282.2112042 | P33: Hijo 28 años | Q33: 254.8723156 | R33: 354.3451593 | S33: 464.565633 | T33: 236.2811273 | U33: 301.1933854
B34: Hijo 29 años | C34: 2879.099787 | D34: 4031.013699 | E34: 5314.520548 | F34: 2669 | G34: 3426.361644 | I34: Hijo 29 años | J34: 245.0610113 | K34: 343.1087376 | L34: 452.3572909 | M34: 227.1778984 | N34: 291.642427 | P34: Hijo 29 años | Q34: 261.5443842 | R34: 366.1870284 | S34: 482.7838931 | T34: 242.4584116 | U34: 311.2589741
B35: Hijo 30 años | C35: 2925.364739 | D35: 4071.123288 | E35: 5665.479452 | F35: 2711.5 | G35: 3460.454795 | I35: Hijo 30 años | J35: 248.998956 | K35: 346.5227549 | L35: 482.2299422 | M35: 230.7953809 | N35: 294.5443417 | P35: Hijo 30 años | Q35: 265.7472042 | R35: 369.8306804 | S35: 514.6658483 | T35: 246.3192144 | U35: 314.3560783
B36: Hijo 31 años | C36: 3007.799511 | D36: 4131.287671 | E36: 5916.164384 | F36: 2788 | G36: 3511.594521 | I36: Hijo 31 años | J36: 256.0155759 | K36: 351.6437808 | L36: 503.5675502 | M36: 237.3068493 | N36: 298.8972137 | P36: Hijo 31 años | Q36: 273.2357782 | R36: 375.2961584 | S36: 537.4386735 | T36: 253.2686593 | U36: 319.0017347
B37: Hijo 32 años | C37: 3081.065268 | D37: 4171.39726 | E37: 6116.712329 | F37: 2856 | G37: 3545.687671 | I37: Hijo 32 años | J37: 262.2517544 | K37: 355.0577981 | L37: 520.6376367 | M37: 243.0948213 | N37: 301.7991284 | P37: Hijo 32 años | Q37: 279.8914166 | R37: 378.9398104 | S37: 555.6569336 | T37: 259.4459437 | U37: 322.0988389
B38: Hijo 33 años | C38: 3163.492752 | D38: 4221.534247 | E38: 6267.123288 | F38: 2932.5 | G38: 3588.30411 | I38: Hijo 33 años | J38: 269.2677539 | K38: 359.3253197 | L38: 533.4402015 | M38: 249.6062897 | N38: 305.4265218 | P38: Hijo 33 años | Q38: 287.3793286 | R38: 383.4943755 | S38: 569.3206287 | T38: 266.3953886 | U38: 325.9702191
B39: Hijo 34 años | C39: 3236.76355 | D39: 4261.643836 | E39: 6387.452055 | F39: 3000.5 | G39: 3622.39726 | I39: Hijo 34 años | J39: 275.5043615 | K39: 362.739337 | L39: 543.6822534 | M39: 255.3942616 | N39: 308.3284365 | P39: Hijo 34 años | Q39: 294.0354249 | R39: 387.1380275 | S39: 580.2515847 | T39: 272.572673 | U39: 329.0673234
B40: Hijo 35 años | C40: 3310.203521 | D40: 4321.808219 | E40: 6487.726027 | F40: 3068.5 | G40: 3673.536986 | I40: Hijo 35 años | J40: 281.7553688 | K40: 367.860363 | L40: 552.2172966 | M40: 261.1822336 | N40: 312.6813085 | P40: Hijo 35 años | Q40: 300.7068894 | R40: 392.6035055 | S40: 589.3607148 | T40: 278.7499573 | U40: 333.7129797
B41: Hijo 36 años | C41: 3383.458342 | D41: 4351.890411 | E41: 6618.082192 | F41: 3136.5 | G41: 3699.106849 | I41: Hijo 36 años | J41: 287.9906165 | K41: 370.4208759 | L41: 563.3128528 | M41: 266.9702055 | N41: 314.8577445 | P41: Hijo 36 años | Q41: 307.3615344 | R41: 395.3362445 | S41: 601.2025839 | T41: 284.9272417 | U41: 336.0358079
B42: Hijo 37 años | C42: 3465.896071 | D42: 4381.972603 | E42: 6758.465753 | F42: 3213 | G42: 3724.676712 | I42: Hijo 37 años | J42: 295.0074881 | K42: 372.9813889 | L42: 575.2619133 | M42: 273.4816739 | N42: 317.0341806 | P42: Hijo 37 años | Q42: 314.8503771 | R42: 398.0689836 | S42: 613.955366 | T42: 291.8766866 | U42: 338.358636
B43: Hijo 38 años | C43: 3548.703433 | D43: 4422.082192 | E43: 6858.739726 | F43: 3289.5 | G43: 3758.769863 | I43: Hijo 38 años | J43: 302.0558217 | K43: 376.3954062 | L43: 583.7969565 | M43: 279.9931424 | N43: 319.9360952 | P43: Hijo 38 años | Q43: 322.372798 | R43: 401.7126356 | S43: 623.064496 | T43: 298.8261315 | U43: 341.4557402
B44: Hijo 39 años | C44: 3640.499 | D44: 4492.273973 | E44: 7039.232877 | F44: 3374.5 | G44: 3818.432877 | I44: Hijo 39 años | J44: 309.8692065 | K44: 382.3699364 | L44: 599.1600343 | M44: 287.2281073 | N44: 325.014446 | P44: Hijo 39 años | Q44: 330.7117292 | R44: 408.0890266 | S44: 639.4609301 | T44: 306.547737 | U44: 346.8756726
B45: Hijo 40 años | C45: 3750.302756 | D45: 4602.575342 | E45: 7320 | F45: 3476.5 | G45: 3912.189041 | I45: Hijo 40 años | J45: 319.2153986 | K45: 391.758484 | L45: 623.0581553 | M45: 295.9100652 | N45: 332.9947114 | P45: Hijo 40 años | Q45: 340.6865678 | R45: 418.1090697 | S45: 664.9664943 | T45: 315.8136636 | U45: 355.3927092
B46: Hijo 41 años | C46: 3860.09894 | D46: 5103.945205 | E46: 7721.09589 | F46: 3578.5 | G46: 4338.353425 | I46: Hijo 41 años | J46: 328.560946 | K46: 434.4337001 | L46: 657.1983282 | M46: 304.5920231 | N46: 369.2686451 | P46: Hijo 41 años | Q46: 350.6607185 | R46: 463.65472 | S46: 701.4030145 | T46: 325.0795901 | U46: 394.106512
B47: Hijo 42 años | C47: 3960.89964 | D47: 5434.849315 | E47: 8172.328767 | F47: 3672 | G47: 4619.621918 | I47: Hijo 42 años | J47: 337.1408229 | K47: 462.5993427 | L47: 695.6060228 | M47: 312.5504845 | N47: 393.2094413 | P47: Hijo 42 años | Q47: 359.8176978 | R47: 493.7148492 | S47: 742.3940998 | T47: 333.5733561 | U47: 419.6576218
B48: Hijo 43 años | C48: 4052.696367 | D48: 5916.164384 | E48: 8473.150685 | F48: 3757 | G48: 5028.739726 | I48: Hijo 43 años | J48: 344.9543064 | K48: 503.5675502 | L48: 721.2111524 | M48: 319.7854494 | N48: 428.0324177 | P48: Hijo 43 años | Q48: 368.1567344 | R48: 537.4386735 | S48: 769.72149 | T48: 341.2949616 | U48: 456.8228724
B49: Hijo 44 años | C49: 4189.499129 | D49: 6126.739726 | E49: 8693.753425 | F49: 3884.5 | G49: 5207.728767 | I49: Hijo 44 años | J49: 356.5985791 | K49: 521.491141 | L49: 739.9882475 | M49: 330.6378968 | N49: 443.2674698 | P49: Hijo 44 años | Q49: 380.5842279 | R49: 556.5678466 | S49: 789.7615761 | T49: 352.8773698 | U49: 473.0826696
B50: Hijo 45 años | C50: 4355.101022 | D50: 6377.424658 | E50: 9124.931507 | F50: 4037.5 | G50: 5420.810959 | I50: Hijo 45 años | J50: 370.6941542 | K50: 542.828749 | L50: 776.6889334 | M50: 343.6608336 | N50: 461.4044367 | P50: Hijo 45 años | Q50: 395.6279042 | R50: 579.3406717 | S50: 828.9308353 | T50: 366.7762597 | U50: 492.439571
B51: Hijo 46 años | C51: 4520.696405 | D51: 6918.90411 | E51: 9546.082192 | F51: 4190.5 | G51: 5881.068493 | I51: Hijo 46 años | J51: 384.7891753 | K51: 588.9179825 | L51: 812.5361149 | M51: 356.6837705 | N51: 500.5802851 | P51: Hijo 46 años | Q51: 410.6709891 | R51: 628.529974 | S51: 867.1891816 | T51: 380.6751495 | U51: 534.2504779
B52: Hijo 47 años | C52: 4731.295571 | D52: 7299.945205 | E52: 9766.684932 | F52: 4386 | G52: 6204.953425 | I52: Hijo 47 años | J52: 402.7147938 | K52: 621.3511467 | L52: 831.31321 | M52: 373.3241898 | N52: 528.1484747 | P52: Hijo 47 años | Q52: 429.8023264 | R52: 663.1446683 | S52: 887.2292677 | T52: 398.4348421 | U52: 563.672968
B53: Hijo 48 años | C53: 4941.897944 | D53: 7570.684932 | E53: 10197.86301 | F53: 4581.5 | G53: 6435.082192 | I53: Hijo 48 años | J53: 420.6406854 | K53: 644.3957634 | L53: 868.0138959 | M53: 389.9646091 | N53: 547.7363989 | P53: Hijo 48 años | Q53: 448.9339551 | R53: 687.7393194 | S53: 926.398527 | T53: 416.1945346 | U53: 584.5784215
B54: Hijo 49 años | C54: 5152.50034 | D54: 7841.424658 | E54: 10619.0137 | F54: 4777 | G54: 6665.210959 | I54: Hijo 49 años | J54: 438.5665788 | K54: 667.4403801 | L54: 903.8610774 | M54: 406.6050284 | N54: 567.3243231 | P54: Hijo 49 años | Q54: 468.0655857 | R54: 712.3339706 | S54: 964.6568732 | T54: 433.9542272 | U54: 605.483875
B55: Hijo 50 años | C55: 5399.096742 | D55: 8162.30137 | E55: 10949.91781 | F55: 5006.5 | G55: 6937.956164 | I55: Hijo 50 años | J55: 459.5561826 | K55: 694.7525184 | L55: 932.0267201 | M55: 426.1394337 | N55: 590.5396407 | P55: Hijo 50 años | Q55: 490.466999 | R55: 741.4831868 | S55: 994.7170024 | T55: 454.802562 | U55: 630.2607088
B56: Hijo 51 años | C56: 5674.501953 | D56: 8874.246575 | E56: 12133.15068 | F56: 5261.5 | G56: 7543.109589 | I56: Hijo 51 años | J56: 482.9979125 | K56: 755.3513253 | L56: 1032.74023 | M56: 447.8443285 | N56: 642.0486265 | P56: Hijo 51 años | Q56: 515.4854741 | R56: 806.1580102 | S56: 1102.204737 | T56: 477.9673784 | U56: 685.2343087
B57: Hijo 52 años | C57: 5976.895874 | D57: 9395.671233 | E57: 13035.61644 | F57: 5542 | G57: 7986.320548 | I57: Hijo 52 años | J57: 508.7368467 | K57: 799.7335501 | L57: 1109.555619 | M57: 471.7197127 | N57: 679.7735176 | P57: Hijo 52 años | Q57: 542.9556688 | R57: 853.5254865 | S57: 1184.186908 | T57: 503.4486764 | U57: 725.4966635
B58: Hijo 53 años | C58: 6306.305791 | D58: 9556.109589 | E58: 13536.9863 | F58: 5848 | G58: 8122.693151 | I58: Hijo 53 años | J58: 536.7753079 | K58: 813.3896192 | L58: 1152.230835 | M58: 497.7655864 | N58: 691.3811764 | P58: Hijo 53 años | Q58: 572.880062 | R58: 868.1000946 | S58: 1229.732558 | T58: 531.2464561 | U58: 737.8850804
B59: Hijo 54 años | C59: 6644.70105 | D59: 9987.287671 | E59: 14238.90411 | F59: 6162.5 | G59: 8489.194521 | I59: Hijo 54 años | J59: 565.5785764 | K59: 850.0903051 | L59: 1211.976138 | M59: 524.5349566 | N59: 722.5767593 | P59: Hijo 54 años | Q59: 603.6207053 | R59: 907.2693538 | S59: 1293.496468 | T59: 559.8163963 | U59: 771.1789508
B60: Hijo 55 años | C60: 6966.004166 | D60: 10528.76712 | E60: 14840.54795 | F60: 6460 | G60: 8949.452055 | I60: Hijo 55 años | J60: 592.927009 | K60: 896.1795385 | L60: 1263.186397 | M60: 549.8573338 | N60: 761.7526077 | P60: Hijo 55 años | Q60: 632.808657 | R60: 956.4586562 | S60: 1348.151249 | T60: 586.8420154 | U60: 812.9898577
B61: Hijo 56 años | C61: 7425.006975 | D61: 10949.91781 | E61: 15542.46575 | F61: 6885 | G61: 9307.430137 | I61: Hijo 56 años | J61: 631.9960587 | K61: 932.0267201 | L61: 1322.9317 | M61: 586.0321584 | N61: 792.222712 | P61: Hijo 56 años | Q61: 674.5055818 | R61: 994.7170024 | S61: 1411.915159 | T61: 625.4500428 | U61: 845.509452
B62: Hijo 57 años | C62: 7974.002901 | D62: 11651.83562 | E62: 16394.79452 | F62: 7395 | G62: 9904.060274 | I62: Hijo 57 años | J62: 678.7250735 | K62: 991.7720226 | L62: 1395.479567 | M62: 629.4419479 | N62: 843.0062192 | P62: Hijo 57 años | Q62: 724.3776987 | R62: 1058.480913 | S62: 1489.342765 | T62: 671.7796756 | U62: 899.7087759
B63: Hijo 58 años | C63: 8433.004717 | D63: 12243.45205 | E63: 17247.12329 | F63: 7820 | G63: 10406.93425 | I63: Hijo 58 años | J63: 717.7940387 | K63: 1042.128778 | L63: 1468.027435 | M63: 665.6167725 | N63: 885.809461 | P63: Hijo 58 años | Q63: 766.0745332 | R63: 1112.22478 | S63: 1566.77037 | T63: 710.3877029 | U63: 945.3910631
B64: Hijo 59 años | C64: 8891.993747 | D64: 13446.73973 | E64: 18350.13699 | F64: 8245 | G64: 11429.72877 | I64: Hijo 59 años | J64: 756.8619155 | K64: 1144.549296 | L64: 1561.91291 | M64: 701.7915971 | N64: 972.8669019 | P64: Hijo 59 años | Q64: 807.7702062 | R64: 1221.534341 | S64: 1666.970801 | T64: 748.9957302 | U64: 1038.30419
B65: Hijo 60 años | C65: 9350.9998 | D65: 14700.16438 | E65: 19453.15068 | F65: 8670 | G65: 12495.13973 | I65: Hijo 60 años | J65: 795.9312412 | K65: 1251.237337 | L65: 1655.798385 | M65: 737.9664217 | N65: 1063.551736 | P65: Hijo 60 años | Q65: 849.4674255 | R65: 1335.398467 | S65: 1767.171231 | T65: 787.6037576 | U65: 1135.088697
B66: Hijo 61 años | C66: 9995.403197 | D66: 15542.46575 | E66: 21057.53425 | F66: 9265 | G66: 13211.09589 | I66: Hijo 61 años | J66: 850.7810762 | K66: 1322.9317 | L66: 1792.359077 | M66: 788.6111761 | N66: 1124.491945 | P66: Hijo 61 años | Q66: 908.0065878 | R66: 1411.915159 | S66: 1912.917312 | T66: 841.6549958 | U66: 1200.127885
B67: Hijo 62 años | C67: 10965.59494 | D67: 16936.27397 | E67: 22661.91781 | F67: 10166 | G67: 14395.83288 | I67: Hijo 62 años | J67: 933.3611143 | K67: 1441.568801 | L67: 1928.919769 | M67: 865.3018043 | N67: 1225.33348 | P67: Hijo 62 años | Q67: 996.1411511 | R67: 1538.532067 | S67: 2058.663393 | T67: 923.5040138 | U67: 1307.752257
B68: Hijo 63 años | C68: 11919.59632 | D68: 18149.58904 | E68: 24216.16438 | F68: 11050 | G68: 15427.15068 | I68: Hijo 63 años | J68: 1014.563073 | K68: 1544.842824 | L68: 2061.212939 | M68: 940.5454394 | N68: 1313.1164 | P68: Hijo 63 años | Q68: 1082.804943 | R68: 1648.752541 | S68: 2199.854909 | T68: 1003.808711 | U68: 1401.43966
B69: Hijo 64 años | C69: 13019.40172 | D69: 19593.53425 | E69: 25870.68493 | F69: 12070 | G69: 16654.50411 | I69: Hijo 64 años | J69: 1108.175467 | K69: =D69*$J$2 -> 1667.747446 | L69: =E69*$J$2 -> 2202.041152 | M69: =F69*$J$2 -> 1027.365018 | N69: =G69*$J$2 -> 1417.585329 | P69: Hijo 64 años | Q69: 1182.713924 | R69: =D69*$Q$2 -> 1779.924013 | S69: =E69*$Q$2 -> 2350.155555 | T69: =F69*$Q$2 -> 1096.467976 | U69: =G69*$Q$2 -> 1512.935411
B70: Hijo 65 años | C70: 14166.00176 | D70: 21318.24658 | E70: 27475.06849 | F70: 13132.5 | G70: 18120.50959 | I70: Hijo 65 años | J70: =C70*$J$2 -> 1205.770891 | K70: 1814.550189 | L70: 2338.601843 | M70: 1117.80208 | N70: 1542.367661 | P70: Hijo 65 años | Q70: =C70*$Q$2 -> 1286.873842 | R70: 1936.60105 | S70: 2495.901636 | T70: 1192.988045 | U70: 1646.110893
B71: Hijo 66 años | C71: 15222.59377 | D71: 22962.73973 | E71: 32057.58904 | F71: 14110 | G71: 19518.32877 | I71: Hijo 66 años | J71: 1295.705082 | K71: 1954.524898 | L71: 2728.653319 | M71: 1201.004176 | N71: 1661.346164 | P71: Hijo 66 años | Q71: 1382.857215 | R71: 2085.990783 | S71: 2912.18888 | T71: 1281.786507 | U71: 1773.092166
B72: Hijo 67 años | C72: 16344.00006 | D72: 25279.06849 | E72: 33992.87671 | F72: 15147 | G72: 21487.20822 | I72: Hijo 67 años | J72: 1391.156083 | K72: 2151.684397 | L72: 2893.379653 | M72: 1289.270749 | N72: 1828.931737 | P72: Hijo 67 años | Q72: 1484.728473 | R72: 2296.411688 | S72: 3087.99509 | T72: 1375.990094 | U72: 1951.949935
B73: Hijo 68 años | C73: 17611.20094 | D73: 27735.78082 | E73: 36178.84932 | F73: 16320 | G73: 23575.4137 | I73: Hijo 68 años | J73: 1499.016717 | K73: 2360.792956 | L73: 3079.443595 | M73: 1389.113264 | N73: 2006.674012 | P73: Hijo 68 años | Q73: 1599.844064 | R73: 2519.585374 | S73: 3286.574125 | T73: 1482.54825 | U73: 2141.647568
B74: Hijo 69 años | C74: 18894.60108 | D74: 29781.36986 | E74: 39528 | F74: 17510 | G74: 25314.16438 | I74: Hijo 69 años | J74: 1608.256188 | K74: 2534.907838 | L74: 3364.514039 | M74: 1490.402773 | N74: 2154.671662 | P74: Hijo 69 años | Q74: 1716.431235 | R74: 2705.411627 | S74: 3590.819069 | T74: 1590.650726 | U74: 2299.599883
B75: Hijo 70 años | C75: 20179.79667 | D75: 31606.35616 | E75: 42486.08219 | F75: 18700 | G75: 26865.40274 | I75: Hijo 70 años | J75: 1717.648482 | K75: 2690.245624 | L75: 3616.297814 | M75: 1591.692282 | N75: 2286.708781 | P75: Hijo 70 años | Q75: 1833.181509 | R75: 2871.197794 | S75: 3859.538406 | T75: 1698.753203 | U75: 2440.518125
B76: Hijo 71 años | C76: 21466.79769 | D76: 34313.75342 | E76: 46095.94521 | F76: 19890 | G76: 29166.69041 | I76: Hijo 71 años | J76: 1827.194449 | K76: 2920.691791 | L76: 3923.55937 | M76: 1692.981791 | N76: 2482.588023 | P76: Hijo 71 años | Q76: 1950.095792 | R76: 3117.144306 | S76: 4187.467088 | T76: 1806.855679 | U76: 2649.57266
B77: Hijo 72 años | C77: 21466.79769 | D77: 34313.75342 | E77: 46095.94521 | F77: 19890 | G77: 29166.69041 | I77: Hijo 72 años | J77: 1827.194449 | K77: 2920.691791 | L77: 3923.55937 | M77: 1692.981791 | N77: 2482.588023 | P77: Hijo 72 años | Q77: 1950.095792 | R77: 3117.144306 | S77: 4187.467088 | T77: 1806.855679 | U77: 2649.57266
B78: Hijo 73 años | C78: 21466.79769 | D78: 34313.75342 | E78: 46095.94521 | F78: 19890 | G78: 29166.69041 | I78: Hijo 73 años | J78: 1827.194449 | K78: 2920.691791 | L78: 3923.55937 | M78: 1692.981791 | N78: 2482.588023 | P78: Hijo 73 años | Q78: 1950.095792 | R78: 3117.144306 | S78: 4187.467088 | T78: 1806.855679 | U78: 2649.57266
B79: Hijo 74 años | C79: 21466.79769 | D79: 34313.75342 | E79: 46095.94521 | F79: 19890 | G79: 29166.69041 | I79: Hijo 74 años | J79: 1827.194449 | K79: 2920.691791 | L79: 3923.55937 | M79: 1692.981791 | N79: 2482.588023 | P79: Hijo 74 años | Q79: 1950.095792 | R79: 3117.144306 | S79: 4187.467088 | T79: 1806.855679 | U79: 2649.57266
B80: Hijo 75 años | C80: 21466.79769 | D80: 34313.75342 | E80: 46095.94521 | F80: 19890 | G80: 29166.69041 | I80: Hijo 75 años | J80: 1827.194449 | K80: 2920.691791 | L80: 3923.55937 | M80: 1692.981791 | N80: 2482.588023 | P80: Hijo 75 años | Q80: 1950.095792 | R80: 3117.144306 | S80: 4187.467088 | T80: 1806.855679 | U80: 2649.57266
B81: Hijo 76 años | C81: 22930.2009 | D81: 37853.42466 | E81: 52533.53425 | F81: 21250 | G81: 32175.41096 | I81: Hijo 76 años | J81: 1951.755283 | K81: 3221.978817 | L81: 4471.509145 | M81: 1808.74123 | N81: 2738.681994 | P81: Hijo 76 años | Q81: 2083.034878 | R81: 3438.696597 | S81: 4772.273238 | T81: 1930.401367 | U81: 2922.892108
B82: Hijo 77 años | C82: 22930.2009 | D82: 37853.42466 | E82: 52533.53425 | F82: 21250 | G82: 32175.41096 | I82: Hijo 77 años | J82: 1951.755283 | K82: 3221.978817 | L82: 4471.509145 | M82: 1808.74123 | N82: 2738.681994 | P82: Hijo 77 años | Q82: 2083.034878 | R82: 3438.696597 | S82: 4772.273238 | T82: 1930.401367 | U82: 2922.892108
B83: Hijo 78 años | C83: 22930.2009 | D83: 37853.42466 | E83: 52533.53425 | F83: 21250 | G83: 32175.41096 | I83: Hijo 78 años | J83: 1951.755283 | K83: 3221.978817 | L83: 4471.509145 | M83: 1808.74123 | N83: 2738.681994 | P83: Hijo 78 años | Q83: 2083.034878 | R83: 3438.696597 | S83: 4772.273238 | T83: 1930.401367 | U83: 2922.892108
B84: Hijo 79 años | C84: 22930.2009 | D84: 37853.42466 | E84: 52533.53425 | F84: 21250 | G84: 32175.41096 | I84: Hijo 79 años | J84: 1951.755283 | K84: 3221.978817 | L84: 4471.509145 | M84: 1808.74123 | N84: 2738.681994 | P84: Hijo 79 años | Q84: 2083.034878 | R84: 3438.696597 | S84: 4772.273238 | T84: 1930.401367 | U84: 2922.892108
B85: Hijo 80 años | C85: 22930.2009 | D85: 37853.42466 | E85: 52533.53425 | F85: 21250 | G85: 32175.41096 | I85: Hijo 80 años | J85: 1951.755283 | K85: 3221.978817 | L85: 4471.509145 | M85: 1808.74123 | N85: 2738.681994 | P85: Hijo 80 años | Q85: 2083.034878 | R85: 3438.696597 | S85: 4772.273238 | T85: 1930.401367 | U85: 2922.892108
B86: Hijo 81 años | C86: 24755.40435 | D86: 41924.54795 | E86: 57938.30137 | F86: 22950 | G86: 35635.86575 | I86: Hijo 81 años | J86: 2107.111553 | K86: 3568.501572 | L86: 4931.547975 | M86: 1953.440528 | N86: 3033.226336 | P86: Hijo 81 años | Q86: 2248.840771 | R86: 3808.527278 | S86: 5263.255348 | T86: 2084.833476 | U86: 3237.248186
B87: Hijo 82 años | C87: 24755.40435 | D87: 41924.54795 | E87: 57938.30137 | F87: 22950 | G87: 35635.86575 | I87: Hijo 82 años | J87: =C87*$J$2 -> 2107.111553 | K87: =D87*$J$2 -> 3568.501572 | L87: =E87*$J$2 -> 4931.547975 | M87: =F87*$J$2 -> 1953.440528 | N87: =G87*$J$2 -> 3033.226336 | P87: Hijo 82 años | Q87: =C87*$Q$2 -> 2248.840771 | R87: =D87*$Q$2 -> 3808.527278 | S87: =E87*$Q$2 -> 5263.255348 | T87: =F87*$Q$2 -> 2084.833476 | U87: =G87*$Q$2 -> 3237.248186
B88: Hijo 83 años | C88: 24755.40435 | D88: 41924.54795 | E88: 57938.30137 | F88: 22950 | G88: 35635.86575 | I88: Hijo 83 años | J88: 2107.111553 | K88: 3568.501572 | L88: 4931.547975 | M88: 1953.440528 | N88: 3033.226336 | P88: Hijo 83 años | Q88: 2248.840771 | R88: 3808.527278 | S88: 5263.255348 | T88: 2084.833476 | U88: 3237.248186
B89: Hijo 84 años | C89: 24755.40435 | D89: 41924.54795 | E89: 57938.30137 | F89: 22950 | G89: 35635.86575 | I89: Hijo 84 años | J89: 2107.111553 | K89: 3568.501572 | L89: 4931.547975 | M89: 1953.440528 | N89: 3033.226336 | P89: Hijo 84 años | Q89: 2248.840771 | R89: 3808.527278 | S89: 5263.255348 | T89: 2084.833476 | U89: 3237.248186
B90: Hijo 85 años | C90: 24755.40435 | D90: 41924.54795 | E90: 57938.30137 | F90: 22950 | G90: 35635.86575 | I90: Hijo 85 años | J90: 2107.111553 | K90: 3568.501572 | L90: 4931.547975 | M90: 1953.440528 | N90: 3033.226336 | P90: Hijo 85 años | Q90: 2248.840771 | R90: 3808.527278 | S90: 5263.255348 | T90: 2084.833476 | U90: 3237.248186
B91: Hijo 86 años | C91: 24755.40435 | D91: 41924.54795 | E91: 57938.30137 | F91: 22950 | G91: 35635.86575 | I91: Hijo 86 años | J91: 2107.111553 | K91: 3568.501572 | L91: 4931.547975 | M91: 1953.440528 | N91: 3033.226336 | P91: Hijo 86 años | Q91: 2248.840771 | R91: 3808.527278 | S91: 5263.255348 | T91: 2084.833476 | U91: 3237.248186
B92: Hijo 87 años | C92: 24755.40435 | D92: 41924.54795 | E92: 57938.30137 | F92: 22950 | G92: 35635.86575 | I92: Hijo 87 años | J92: 2107.111553 | K92: 3568.501572 | L92: 4931.547975 | M92: 1953.440528 | N92: 3033.226336 | P92: Hijo 87 años | Q92: 2248.840771 | R92: 3808.527278 | S92: 5263.255348 | T92: 2084.833476 | U92: 3237.248186
B93: Hijo 88 años | C93: 24755.40435 | D93: 41924.54795 | E93: 57938.30137 | F93: 22950 | G93: 35635.86575 | I93: Hijo 88 años | J93: 2107.111553 | K93: 3568.501572 | L93: 4931.547975 | M93: 1953.440528 | N93: 3033.226336 | P93: Hijo 88 años | Q93: 2248.840771 | R93: 3808.527278 | S93: 5263.255348 | T93: 2084.833476 | U93: 3237.248186
B94: Hijo 89 años | C94: 24755.40435 | D94: 41924.54795 | E94: 57938.30137 | F94: 22950 | G94: 35635.86575 | I94: Hijo 89 años | J94: 2107.111553 | K94: 3568.501572 | L94: 4931.547975 | M94: 1953.440528 | N94: 3033.226336 | P94: Hijo 89 años | Q94: 2248.840771 | R94: 3808.527278 | S94: 5263.255348 | T94: 2084.833476 | U94: 3237.248186
B95: Hijo 90 años | C95: 24755.40435 | D95: 41924.54795 | E95: 57938.30137 | F95: 22950 | G95: 35635.86575 | I95: Hijo 90 años | J95: 2107.111553 | K95: 3568.501572 | L95: 4931.547975 | M95: 1953.440528 | N95: 3033.226336 | P95: Hijo 90 años | Q95: 2248.840771 | R95: 3808.527278 | S95: 5263.255348 | T95: 2084.833476 | U95: 3237.248186
B96: Hijo 91 años | C96: 24755.40435 | D96: 41924.54795 | E96: 57938.30137 | F96: 22950 | G96: 35635.86575 | I96: Hijo 91 años | J96: 2107.111553 | K96: 3568.501572 | L96: 4931.547975 | M96: 1953.440528 | N96: 3033.226336 | P96: Hijo 91 años | Q96: 2248.840771 | R96: 3808.527278 | S96: 5263.255348 | T96: 2084.833476 | U96: 3237.248186
B97: Hijo 92 años | C97: 24755.40435 | D97: 41924.54795 | E97: 57938.30137 | F97: 22950 | G97: 35635.86575 | I97: Hijo 92 años | J97: 2107.111553 | K97: 3568.501572 | L97: 4931.547975 | M97: 1953.440528 | N97: 3033.226336 | P97: Hijo 92 años | Q97: 2248.840771 | R97: 3808.527278 | S97: 5263.255348 | T97: 2084.833476 | U97: 3237.248186
B98: Hijo 93 años | C98: 24755.40435 | D98: 41924.54795 | E98: 57938.30137 | F98: 22950 | G98: 35635.86575 | I98: Hijo 93 años | J98: 2107.111553 | K98: 3568.501572 | L98: 4931.547975 | M98: 1953.440528 | N98: 3033.226336 | P98: Hijo 93 años | Q98: 2248.840771 | R98: 3808.527278 | S98: 5263.255348 | T98: 2084.833476 | U98: 3237.248186
B99: Hijo 94 años | C99: 24755.40435 | D99: 41924.54795 | E99: 57938.30137 | F99: 22950 | G99: 35635.86575 | I99: Hijo 94 años | J99: 2107.111553 | K99: 3568.501572 | L99: 4931.547975 | M99: 1953.440528 | N99: 3033.226336 | P99: Hijo 94 años | Q99: 2248.840771 | R99: 3808.527278 | S99: 5263.255348 | T99: 2084.833476 | U99: 3237.248186
B100: Hijo 95 años | C100: 24755.40435 | D100: 41924.54795 | E100: 57938.30137 | F100: 22950 | G100: 35635.86575 | I100: Hijo 95 años | J100: 2107.111553 | K100: 3568.501572 | L100: 4931.547975 | M100: 1953.440528 | N100: 3033.226336 | P100: Hijo 95 años | Q100: 2248.840771 | R100: 3808.527278 | S100: 5263.255348 | T100: 2084.833476 | U100: 3237.248186
B101: Hijo 96 años | C101: 24755.40435 | D101: 41924.54795 | E101: 57938.30137 | F101: 22950 | G101: 35635.86575 | I101: Hijo 96 años | J101: 2107.111553 | K101: 3568.501572 | L101: 4931.547975 | M101: 1953.440528 | N101: 3033.226336 | P101: Hijo 96 años | Q101: 2248.840771 | R101: 3808.527278 | S101: 5263.255348 | T101: 2084.833476 | U101: 3237.248186
B102: Hijo 97 años | C102: 24755.40435 | D102: 41924.54795 | E102: 57938.30137 | F102: 22950 | G102: 35635.86575 | I102: Hijo 97 años | J102: 2107.111553 | K102: 3568.501572 | L102: 4931.547975 | M102: 1953.440528 | N102: 3033.226336 | P102: Hijo 97 años | Q102: 2248.840771 | R102: 3808.527278 | S102: 5263.255348 | T102: 2084.833476 | U102: 3237.248186
B103: Hijo 98 años | C103: 24755.40435 | D103: 41924.54795 | E103: 57938.30137 | F103: 22950 | G103: 35635.86575 | I103: Hijo 98 años | J103: 2107.111553 | K103: 3568.501572 | L103: 4931.547975 | M103: 1953.440528 | N103: 3033.226336 | P103: Hijo 98 años | Q103: 2248.840771 | R103: 3808.527278 | S103: 5263.255348 | T103: 2084.833476 | U103: 3237.248186
B104: Hijo 99 años | C104: 24755.40435 | D104: 41924.54795 | E104: 57938.30137 | F104: 22950 | G104: 35635.86575 | I104: Hijo 99 años | J104: 2107.111553 | K104: 3568.501572 | L104: 4931.547975 | M104: 1953.440528 | N104: 3033.226336 | P104: Hijo 99 años | Q104: 2248.840771 | R104: 3808.527278 | S104: 5263.255348 | T104: 2084.833476 | U104: 3237.248186
B105: Hijo 100 años | C105: 24755.40435 | D105: 41924.54795 | E105: 57938.30137 | F105: 22950 | G105: 35635.86575 | I105: Hijo 100 años | J105: 2107.111553 | K105: 3568.501572 | L105: 4931.547975 | M105: 1953.440528 | N105: 3033.226336 | P105: Hijo 100 años | Q105: 2248.840771 | R105: 3808.527278 | S105: 5263.255348 | T105: 2084.833476 | U105: 3237.248186
B106: Hija 0 años | C106: =C5 -> 2472.29893 | D106: 2998.191781 | E106: 4081.150685 | F106: 2295 | G106: 2548.463014 | I106: Hija 0 años | J106: 210.4352474 | K106: 255.1977924 | L106: 347.3762592 | M106: 195.3440528 | N106: 216.9181235 | P106: Hija 0 años | Q106: 224.589611 | R106: 272.3629888 | S106: 370.7415934 | T106: 208.4833476 | U106: 231.5085404
B107: Hija 1 año | C107: 2472.29893 | D107: 2998.191781 | E107: 4081.150685 | F107: 2295 | G107: 2548.463014 | I107: Hija 1 año | J107: 210.4352474 | K107: 255.1977924 | L107: 347.3762592 | M107: 195.3440528 | N107: 216.9181235 | P107: Hija 1 año | Q107: 224.589611 | R107: 272.3629888 | S107: 370.7415934 | T107: 208.4833476 | U107: 231.5085404
B108: Hija 2 años | C108: 2472.29893 | D108: 2998.191781 | E108: 4081.150685 | F108: 2295 | G108: 2548.463014 | I108: Hija 2 años | J108: 210.4352474 | K108: 255.1977924 | L108: 347.3762592 | M108: 195.3440528 | N108: 216.9181235 | P108: Hija 2 años | Q108: 224.589611 | R108: 272.3629888 | S108: 370.7415934 | T108: 208.4833476 | U108: 231.5085404
B109: Hija 3 años | C109: 2472.29893 | D109: 2998.191781 | E109: 4081.150685 | F109: 2295 | G109: 2548.463014 | I109: Hija 3 años | J109: 210.4352474 | K109: 255.1977924 | L109: 347.3762592 | M109: 195.3440528 | N109: 216.9181235 | P109: Hija 3 años | Q109: 224.589611 | R109: 272.3629888 | S109: 370.7415934 | T109: 208.4833476 | U109: 231.5085404
B110: Hija 4 años | C110: 2472.29893 | D110: 2998.191781 | E110: 4081.150685 | F110: 2295 | G110: 2548.463014 | I110: Hija 4 años | J110: 210.4352474 | K110: 255.1977924 | L110: 347.3762592 | M110: 195.3440528 | N110: 216.9181235 | P110: Hija 4 años | Q110: 224.589611 | R110: 272.3629888 | S110: 370.7415934 | T110: 208.4833476 | U110: 231.5085404
B111: Hija 5 años | C111: 2472.29893 | D111: 2998.191781 | E111: 4081.150685 | F111: 2295 | G111: 2548.463014 | I111: Hija 5 años | J111: 210.4352474 | K111: 255.1977924 | L111: 347.3762592 | M111: 195.3440528 | N111: 216.9181235 | P111: Hija 5 años | Q111: 224.589611 | R111: 272.3629888 | S111: 370.7415934 | T111: 208.4833476 | U111: 231.5085404
B112: Hija 6 años | C112: 2472.29893 | D112: 2998.191781 | E112: 4081.150685 | F112: 2295 | G112: 2548.463014 | I112: Hija 6 años | J112: 210.4352474 | K112: 255.1977924 | L112: 347.3762592 | M112: 195.3440528 | N112: 216.9181235 | P112: Hija 6 años | Q112: 224.589611 | R112: 272.3629888 | S112: 370.7415934 | T112: 208.4833476 | U112: 231.5085404
B113: Hija 7 años | C113: 2472.29893 | D113: 2998.191781 | E113: 4081.150685 | F113: 2295 | G113: 2548.463014 | I113: Hija 7 años | J113: 210.4352474 | K113: 255.1977924 | L113: 347.3762592 | M113: 195.3440528 | N113: 216.9181235 | P113: Hija 7 años | Q113: 224.589611 | R113: 272.3629888 | S113: 370.7415934 | T113: 208.4833476 | U113: 231.5085404
B114: Hija 8 años | C114: 2472.29893 | D114: 2998.191781 | E114: 4081.150685 | F114: 2295 | G114: 2548.463014 | I114: Hija 8 años | J114: 210.4352474 | K114: 255.1977924 | L114: 347.3762592 | M114: 195.3440528 | N114: 216.9181235 | P114: Hija 8 años | Q114: 224.589611 | R114: 272.3629888 | S114: 370.7415934 | T114: 208.4833476 | U114: 231.5085404
B115: Hija 9 años | C115: 2472.29893 | D115: 2998.191781 | E115: 4081.150685 | F115: 2295 | G115: 2548.463014 | I115: Hija 9 años | J115: 210.4352474 | K115: 255.1977924 | L115: 347.3762592 | M115: 195.3440528 | N115: 216.9181235 | P115: Hija 9 años | Q115: 224.589611 | R115: 272.3629888 | S115: 370.7415934 | T115: 208.4833476 | U115: 231.5085404
B116: Hija 10 años | C116: 2472.29893 | D116: 2998.191781 | E116: 4081.150685 | F116: 2295 | G116: 2548.463014 | I116: Hija 10 años | J116: 210.4352474 | K116: 255.1977924 | L116: 347.3762592 | M116: 195.3440528 | N116: 216.9181235 | P116: Hija 10 años | Q116: 224.589611 | R116: 272.3629888 | S116: 370.7415934 | T116: 208.4833476 | U116: 231.5085404
B117: Hija 11 años | C117: 2472.29893 | D117: 2998.191781 | E117: 4081.150685 | F117: 2295 | G117: 2548.463014 | I117: Hija 11 años | J117: 210.4352474 | K117: 255.1977924 | L117: 347.3762592 | M117: 195.3440528 | N117: 216.9181235 | P117: Hija 11 años | Q117: 224.589611 | R117: 272.3629888 | S117: 370.7415934 | T117: 208.4833476 | U117: 231.5085404
B118: Hija 12 años | C118: 2472.29893 | D118: 2998.191781 | E118: 4081.150685 | F118: 2295 | G118: 2548.463014 | I118: Hija 12 años | J118: 210.4352474 | K118: 255.1977924 | L118: 347.3762592 | M118: 195.3440528 | N118: 216.9181235 | P118: Hija 12 años | Q118: 224.589611 | R118: 272.3629888 | S118: 370.7415934 | T118: 208.4833476 | U118: 231.5085404
B119: Hija 13 años | C119: 2472.29893 | D119: 2998.191781 | E119: 4081.150685 | F119: 2295 | G119: 2548.463014 | I119: Hija 13 años | J119: 210.4352474 | K119: 255.1977924 | L119: 347.3762592 | M119: 195.3440528 | N119: 216.9181235 | P119: Hija 13 años | Q119: 224.589611 | R119: 272.3629888 | S119: 370.7415934 | T119: 208.4833476 | U119: 231.5085404
B120: Hija 14 años | C120: 2472.29893 | D120: 2998.191781 | E120: 4081.150685 | F120: 2295 | G120: 2548.463014 | I120: Hija 14 años | J120: 210.4352474 | K120: 255.1977924 | L120: 347.3762592 | M120: 195.3440528 | N120: 216.9181235 | P120: Hija 14 años | Q120: 224.589611 | R120: 272.3629888 | S120: 370.7415934 | T120: 208.4833476 | U120: 231.5085404
B121: Hija 15 años | C121: 2472.29893 | D121: 2998.191781 | E121: 4081.150685 | F121: 2295 | G121: 2548.463014 | I121: Hija 15 años | J121: 210.4352474 | K121: 255.1977924 | L121: 347.3762592 | M121: 195.3440528 | N121: 216.9181235 | P121: Hija 15 años | Q121: 224.589611 | R121: 272.3629888 | S121: 370.7415934 | T121: 208.4833476 | U121: 231.5085404
B122: Hija 16 años | C122: =C21 -> 2472.29893 | D122: 2998.191781 | E122: 4081.150685 | F122: 2295 | G122: 2548.463014 | I122: Hija 16 años | J122: 210.4352474 | K122: 255.1977924 | L122: 347.3762592 | M122: 195.3440528 | N122: 216.9181235 | P122: Hija 16 años | Q122: 224.589611 | R122: 272.3629888 | S122: 370.7415934 | T122: 208.4833476 | U122: 231.5085404
B123: Hija 17 años | C123: 2472.29893 | D123: 2998.191781 | E123: 4081.150685 | F123: 2295 | G123: 2548.463014 | I123: Hija 17 años | J123: 210.4352474 | K123: 255.1977924 | L123: 347.3762592 | M123: 195.3440528 | N123: 216.9181235 | P123: Hija 17 años | Q123: 224.589611 | R123: 272.3629888 | S123: 370.7415934 | T123: 208.4833476 | U123: 231.5085404
B124: Hija 18 años | C124: 2562.207989 | D124: 3078.410959 | E124: 4131.287671 | F124: 2380 | G124: 2616.649315 | I124: Hija 18 años | J124: 218.0880578 | K124: 262.025827 | L124: 351.6437808 | M124: 202.5790177 | N124: 222.7219529 | P124: Hija 18 años | Q124: 232.7571672 | R124: 279.6502928 | S124: 375.2961584 | T124: 216.2049531 | U124: 237.7027489
B125: Hija 19 años | C125: 2562.207989 | D125: 3078.410959 | E125: 4131.287671 | F125: 2380 | G125: 2616.649315 | I125: Hija 19 años | J125: 218.0880578 | K125: 262.025827 | L125: 351.6437808 | M125: 202.5790177 | N125: 222.7219529 | P125: Hija 19 años | Q125: 232.7571672 | R125: 279.6502928 | S125: 375.2961584 | T125: 216.2049531 | U125: 237.7027489
B126: Hija 20 años | C126: 2562.207989 | D126: 3078.410959 | E126: 4131.287671 | F126: 2380 | G126: 2616.649315 | I126: Hija 20 años | J126: 218.0880578 | K126: 262.025827 | L126: 351.6437808 | M126: 202.5790177 | N126: 222.7219529 | P126: Hija 20 años | Q126: 232.7571672 | R126: 279.6502928 | S126: 375.2961584 | T126: 216.2049531 | U126: 237.7027489
B127: Hija 21 años | C127: 2562.207989 | D127: 3078.410959 | E127: 4131.287671 | F127: 2380 | G127: 2616.649315 | I127: Hija 21 años | J127: 218.0880578 | K127: 262.025827 | L127: 351.6437808 | M127: 202.5790177 | N127: 222.7219529 | P127: Hija 21 años | Q127: 232.7571672 | R127: 279.6502928 | S127: 375.2961584 | T127: 216.2049531 | U127: 237.7027489
B128: Hija 22 años | C128: 2562.207989 | D128: 3078.410959 | E128: 4131.287671 | F128: 2380 | G128: 2616.649315 | I128: Hija 22 años | J128: 218.0880578 | K128: 262.025827 | L128: 351.6437808 | M128: 202.5790177 | N128: 222.7219529 | P128: Hija 22 años | Q128: 232.7571672 | R128: 279.6502928 | S128: 375.2961584 | T128: 216.2049531 | U128: 237.7027489
B129: Hija 23 años | C129: 2562.207989 | D129: 3078.410959 | E129: 4131.287671 | F129: 2380 | G129: 2616.649315 | I129: Hija 23 años | J129: 218.0880578 | K129: 262.025827 | L129: 351.6437808 | M129: 202.5790177 | N129: 222.7219529 | P129: Hija 23 años | Q129: 232.7571672 | R129: 279.6502928 | S129: 375.2961584 | T129: 216.2049531 | U129: 237.7027489
B130: Hija 24 años | C130: 2562.207989 | D130: 3078.410959 | E130: 4131.287671 | F130: 2380 | G130: 2616.649315 | I130: Hija 24 años | J130: 218.0880578 | K130: 262.025827 | L130: 351.6437808 | M130: 202.5790177 | N130: 222.7219529 | P130: Hija 24 años | Q130: 232.7571672 | R130: 279.6502928 | S130: 375.2961584 | T130: 216.2049531 | U130: 237.7027489
B131: Hija 25 años | C131: 2562.207989 | D131: 3078.410959 | E131: 4131.287671 | F131: 2380 | G131: 2616.649315 | I131: Hija 25 años | J131: 218.0880578 | K131: 262.025827 | L131: 351.6437808 | M131: 202.5790177 | N131: 222.7219529 | P131: Hija 25 años | Q131: 232.7571672 | R131: 279.6502928 | S131: 375.2961584 | T131: 216.2049531 | U131: 237.7027489
B132: Hija 26 años | C132: 2608.927172 | D132: 3379.232877 | E132: 4442.136986 | F132: 2422.5 | G132: 2872.347945 | I132: Hija 26 años | J132: 222.0646654 | K132: 287.6309566 | L132: 378.1024148 | M132: 206.1965002 | N132: 244.4863131 | P132: Hija 26 años | Q132: 237.0012507 | R132: 306.977683 | S132: 403.5344616 | T132: 220.0657558 | U132: 260.9310305
B133: Hija 27 años | C133: 2723.401886 | D133: 3770.30137 | E133: 4883.342466 | F133: 2524.5 | G133: 3204.756164 | I133: Hija 27 años | J133: 231.8084365 | K133: 320.9176252 | L133: 415.656605 | M133: 214.8784581 | N133: 272.7799814 | P133: Hija 27 años | Q133: 247.4004105 | R133: 342.5032902 | S133: 443.6146339 | T133: 229.3316824 | U133: 291.1277967
B134: Hija 28 años | C134: 2805.653166 | D134: 3900.657534 | E134: 5113.972603 | F134: 2601 | G134: 3315.558904 | I134: Hija 28 años | J134: 238.809438 | K134: 332.0131814 | L134: 435.2872044 | M134: 221.3899265 | N134: 282.2112042 | P134: Hija 28 años | Q134: 254.8723156 | R134: 354.3451593 | S134: 464.565633 | T134: 236.2811273 | U134: 301.1933854
B135: Hija 29 años | C135: 2879.099787 | D135: 4031.013699 | E135: 5314.520548 | F135: 2669 | G135: 3426.361644 | I135: Hija 29 años | J135: 245.0610113 | K135: 343.1087376 | L135: 452.3572909 | M135: 227.1778984 | N135: 291.642427 | P135: Hija 29 años | Q135: 261.5443842 | R135: 366.1870284 | S135: 482.7838931 | T135: 242.4584116 | U135: 311.2589741
B136: Hija 30 años | C136: 2925.364739 | D136: 4071.123288 | E136: 5665.479452 | F136: 2711.5 | G136: 3460.454795 | I136: Hija 30 años | J136: 248.998956 | K136: 346.5227549 | L136: 482.2299422 | M136: 230.7953809 | N136: 294.5443417 | P136: Hija 30 años | Q136: 265.7472042 | R136: 369.8306804 | S136: 514.6658483 | T136: 246.3192144 | U136: 314.3560783
B137: Hija 31 años | C137: 3007.799511 | D137: 4131.287671 | E137: 5916.164384 | F137: 2788 | G137: 3511.594521 | I137: Hija 31 años | J137: 256.0155759 | K137: 351.6437808 | L137: 503.5675502 | M137: 237.3068493 | N137: 298.8972137 | P137: Hija 31 años | Q137: 273.2357782 | R137: 375.2961584 | S137: 537.4386735 | T137: 253.2686593 | U137: 319.0017347
B138: Hija 32 años | C138: =C37 -> 3081.065268 | D138: 4171.39726 | E138: 6116.712329 | F138: 2856 | G138: 3545.687671 | I138: Hija 32 años | J138: 262.2517544 | K138: 355.0577981 | L138: 520.6376367 | M138: 243.0948213 | N138: 301.7991284 | P138: Hija 32 años | Q138: 279.8914166 | R138: 378.9398104 | S138: 555.6569336 | T138: 259.4459437 | U138: 322.0988389
B139: Hija 33 años | C139: 3163.492752 | D139: 4221.534247 | E139: 6267.123288 | F139: 2932.5 | G139: 3588.30411 | I139: Hija 33 años | J139: 269.2677539 | K139: 359.3253197 | L139: 533.4402015 | M139: 249.6062897 | N139: 305.4265218 | P139: Hija 33 años | Q139: 287.3793286 | R139: 383.4943755 | S139: 569.3206287 | T139: 266.3953886 | U139: 325.9702191
B140: Hija 34 años | C140: 3236.76355 | D140: 4261.643836 | E140: 6387.452055 | F140: 3000.5 | G140: 3622.39726 | I140: Hija 34 años | J140: 275.5043615 | K140: 362.739337 | L140: 543.6822534 | M140: 255.3942616 | N140: 308.3284365 | P140: Hija 34 años | Q140: 294.0354249 | R140: 387.1380275 | S140: 580.2515847 | T140: 272.572673 | U140: 329.0673234
B141: Hija 35 años | C141: 3310.203521 | D141: 4321.808219 | E141: 6487.726027 | F141: 3068.5 | G141: 3673.536986 | I141: Hija 35 años | J141: 281.7553688 | K141: 367.860363 | L141: 552.2172966 | M141: 261.1822336 | N141: 312.6813085 | P141: Hija 35 años | Q141: 300.7068894 | R141: 392.6035055 | S141: 589.3607148 | T141: 278.7499573 | U141: 333.7129797
B142: Hija 36 años | C142: 3383.458342 | D142: 4351.890411 | E142: 6618.082192 | F142: 3136.5 | G142: 3699.106849 | I142: Hija 36 años | J142: 287.9906165 | K142: 370.4208759 | L142: 563.3128528 | M142: 266.9702055 | N142: 314.8577445 | P142: Hija 36 años | Q142: 307.3615344 | R142: 395.3362445 | S142: 601.2025839 | T142: 284.9272417 | U142: 336.0358079
B143: Hija 37 años | C143: 3465.896071 | D143: 4381.972603 | E143: 6758.465753 | F143: 3213 | G143: 3724.676712 | I143: Hija 37 años | J143: 295.0074881 | K143: 372.9813889 | L143: 575.2619133 | M143: 273.4816739 | N143: 317.0341806 | P143: Hija 37 años | Q143: 314.8503771 | R143: 398.0689836 | S143: 613.955366 | T143: 291.8766866 | U143: 338.358636
B144: Hija 38 años | C144: 3548.703433 | D144: 4422.082192 | E144: 6858.739726 | F144: 3289.5 | G144: 3758.769863 | I144: Hija 38 años | J144: 302.0558217 | K144: 376.3954062 | L144: 583.7969565 | M144: 279.9931424 | N144: 319.9360952 | P144: Hija 38 años | Q144: 322.372798 | R144: 401.7126356 | S144: 623.064496 | T144: 298.8261315 | U144: 341.4557402
B145: Hija 39 años | C145: 3640.499 | D145: 4492.273973 | E145: 7039.232877 | F145: 3374.5 | G145: 3818.432877 | I145: Hija 39 años | J145: 309.8692065 | K145: 382.3699364 | L145: 599.1600343 | M145: 287.2281073 | N145: 325.014446 | P145: Hija 39 años | Q145: 330.7117292 | R145: 408.0890266 | S145: 639.4609301 | T145: 306.547737 | U145: 346.8756726
B146: Hija 40 años | C146: 3750.302756 | D146: 4602.575342 | E146: 7320 | F146: 3476.5 | G146: 3912.189041 | I146: Hija 40 años | J146: 319.2153986 | K146: 391.758484 | L146: 623.0581553 | M146: 295.9100652 | N146: 332.9947114 | P146: Hija 40 años | Q146: 340.6865678 | R146: 418.1090697 | S146: 664.9664943 | T146: 315.8136636 | U146: 355.3927092
B147: Hija 41 años | C147: 3860.09894 | D147: 5103.945205 | E147: 7721.09589 | F147: 3578.5 | G147: 4338.353425 | I147: Hija 41 años | J147: 328.560946 | K147: 434.4337001 | L147: 657.1983282 | M147: 304.5920231 | N147: 369.2686451 | P147: Hija 41 años | Q147: 350.6607185 | R147: 463.65472 | S147: 701.4030145 | T147: 325.0795901 | U147: 394.106512
B148: Hija 42 años | C148: 3960.89964 | D148: 5434.849315 | E148: 8172.328767 | F148: 3672 | G148: 4619.621918 | I148: Hija 42 años | J148: 337.1408229 | K148: 462.5993427 | L148: 695.6060228 | M148: 312.5504845 | N148: 393.2094413 | P148: Hija 42 años | Q148: 359.8176978 | R148: 493.7148492 | S148: 742.3940998 | T148: 333.5733561 | U148: 419.6576218
B149: Hija 43 años | C149: 4052.696367 | D149: 5916.164384 | E149: 8473.150685 | F149: 3757 | G149: 5028.739726 | I149: Hija 43 años | J149: 344.9543064 | K149: 503.5675502 | L149: 721.2111524 | M149: 319.7854494 | N149: 428.0324177 | P149: Hija 43 años | Q149: 368.1567344 | R149: 537.4386735 | S149: 769.72149 | T149: 341.2949616 | U149: 456.8228724
B150: Hija 44 años | C150: 4189.499129 | D150: 6126.739726 | E150: 8693.753425 | F150: 3884.5 | G150: 5207.728767 | I150: Hija 44 años | J150: 356.5985791 | K150: 521.491141 | L150: 739.9882475 | M150: 330.6378968 | N150: 443.2674698 | P150: Hija 44 años | Q150: 380.5842279 | R150: 556.5678466 | S150: 789.7615761 | T150: 352.8773698 | U150: 473.0826696
B151: Hija 45 años | C151: 4355.101022 | D151: 6377.424658 | E151: 9124.931507 | F151: 4037.5 | G151: 5420.810959 | I151: Hija 45 años | J151: 370.6941542 | K151: 542.828749 | L151: 776.6889334 | M151: 343.6608336 | N151: 461.4044367 | P151: Hija 45 años | Q151: 395.6279042 | R151: 579.3406717 | S151: 828.9308353 | T151: 366.7762597 | U151: 492.439571
B152: Hija 46 años | C152: 4520.696405 | D152: 6918.90411 | E152: 9546.082192 | F152: 4190.5 | G152: 5881.068493 | I152: Hija 46 años | J152: 384.7891753 | K152: =D152*$J$2 -> 588.9179825 | L152: =E152*$J$2 -> 812.5361149 | M152: =F152*$J$2 -> 356.6837705 | N152: =G152*$J$2 -> 500.5802851 | P152: Hija 46 años | Q152: 410.6709891 | R152: =D152*$Q$2 -> 628.529974 | S152: =E152*$Q$2 -> 867.1891816 | T152: =F152*$Q$2 -> 380.6751495 | U152: =G152*$Q$2 -> 534.2504779
B153: Hija 47 años | C153: 4731.295571 | D153: 7299.945205 | E153: 9766.684932 | F153: 4386 | G153: 6204.953425 | I153: Hija 47 años | J153: =C153*$J$2 -> 402.7147938 | K153: 621.3511467 | L153: 831.31321 | M153: 373.3241898 | N153: 528.1484747 | P153: Hija 47 años | Q153: =C153*$Q$2 -> 429.8023264 | R153: 663.1446683 | S153: 887.2292677 | T153: 398.4348421 | U153: 563.672968
B154: Hija 48 años | C154: =C53 -> 4941.897944 | D154: 7570.684932 | E154: 10197.86301 | F154: 4581.5 | G154: 6435.082192 | I154: Hija 48 años | J154: 420.6406854 | K154: 644.3957634 | L154: 868.0138959 | M154: 389.9646091 | N154: 547.7363989 | P154: Hija 48 años | Q154: 448.9339551 | R154: 687.7393194 | S154: 926.398527 | T154: 416.1945346 | U154: 584.5784215
B155: Hija 49 años | C155: 5152.50034 | D155: 7841.424658 | E155: 10619.0137 | F155: 4777 | G155: 6665.210959 | I155: Hija 49 años | J155: 438.5665788 | K155: 667.4403801 | L155: 903.8610774 | M155: 406.6050284 | N155: 567.3243231 | P155: Hija 49 años | Q155: 468.0655857 | R155: 712.3339706 | S155: 964.6568732 | T155: 433.9542272 | U155: 605.483875
B156: Hija 50 años | C156: 5399.096742 | D156: 8162.30137 | E156: 10949.91781 | F156: 5006.5 | G156: 6937.956164 | I156: Hija 50 años | J156: 459.5561826 | K156: 694.7525184 | L156: 932.0267201 | M156: 426.1394337 | N156: 590.5396407 | P156: Hija 50 años | Q156: 490.466999 | R156: 741.4831868 | S156: 994.7170024 | T156: 454.802562 | U156: 630.2607088
B157: Hija 51 años | C157: 5674.501953 | D157: 8874.246575 | E157: 12133.15068 | F157: 5261.5 | G157: 7543.109589 | I157: Hija 51 años | J157: 482.9979125 | K157: 755.3513253 | L157: 1032.74023 | M157: 447.8443285 | N157: 642.0486265 | P157: Hija 51 años | Q157: 515.4854741 | R157: 806.1580102 | S157: 1102.204737 | T157: 477.9673784 | U157: 685.2343087
B158: Hija 52 años | C158: 5976.895874 | D158: 9395.671233 | E158: 13035.61644 | F158: 5542 | G158: 7986.320548 | I158: Hija 52 años | J158: 508.7368467 | K158: 799.7335501 | L158: 1109.555619 | M158: 471.7197127 | N158: 679.7735176 | P158: Hija 52 años | Q158: 542.9556688 | R158: 853.5254865 | S158: 1184.186908 | T158: 503.4486764 | U158: 725.4966635
B159: Hija 53 años | C159: 6306.305791 | D159: 9556.109589 | E159: 13536.9863 | F159: 5848 | G159: 8122.693151 | I159: Hija 53 años | J159: 536.7753079 | K159: 813.3896192 | L159: 1152.230835 | M159: 497.7655864 | N159: 691.3811764 | P159: Hija 53 años | Q159: 572.880062 | R159: 868.1000946 | S159: 1229.732558 | T159: 531.2464561 | U159: 737.8850804
B160: Hija 54 años | C160: 6644.70105 | D160: 9987.287671 | E160: 14238.90411 | F160: 6162.5 | G160: 8489.194521 | I160: Hija 54 años | J160: 565.5785764 | K160: 850.0903051 | L160: 1211.976138 | M160: 524.5349566 | N160: 722.5767593 | P160: Hija 54 años | Q160: 603.6207053 | R160: 907.2693538 | S160: 1293.496468 | T160: 559.8163963 | U160: 771.1789508
B161: Hija 55 años | C161: 6966.004166 | D161: 10528.76712 | E161: 14840.54795 | F161: 6460 | G161: 8949.452055 | I161: Hija 55 años | J161: 592.927009 | K161: 896.1795385 | L161: 1263.186397 | M161: 549.8573338 | N161: 761.7526077 | P161: Hija 55 años | Q161: 632.808657 | R161: 956.4586562 | S161: 1348.151249 | T161: 586.8420154 | U161: 812.9898577
B162: Hija 56 años | C162: 7425.006975 | D162: 10949.91781 | E162: 15542.46575 | F162: 6885 | G162: 9307.430137 | I162: Hija 56 años | J162: 631.9960587 | K162: 932.0267201 | L162: 1322.9317 | M162: 586.0321584 | N162: 792.222712 | P162: Hija 56 años | Q162: 674.5055818 | R162: 994.7170024 | S162: 1411.915159 | T162: 625.4500428 | U162: 845.509452
B163: Hija 57 años | C163: 7974.002901 | D163: 11651.83562 | E163: 16394.79452 | F163: 7395 | G163: 9904.060274 | I163: Hija 57 años | J163: 678.7250735 | K163: 991.7720226 | L163: 1395.479567 | M163: 629.4419479 | N163: 843.0062192 | P163: Hija 57 años | Q163: 724.3776987 | R163: 1058.480913 | S163: 1489.342765 | T163: 671.7796756 | U163: 899.7087759
B164: Hija 58 años | C164: 8433.004717 | D164: 12243.45205 | E164: 17247.12329 | F164: 7820 | G164: 10406.93425 | I164: Hija 58 años | J164: 717.7940387 | K164: 1042.128778 | L164: 1468.027435 | M164: 665.6167725 | N164: 885.809461 | P164: Hija 58 años | Q164: 766.0745332 | R164: 1112.22478 | S164: 1566.77037 | T164: 710.3877029 | U164: 945.3910631
B165: Hija 59 años | C165: 8891.993747 | D165: 13446.73973 | E165: 18350.13699 | F165: 8245 | G165: 11429.72877 | I165: Hija 59 años | J165: 756.8619155 | K165: 1144.549296 | L165: 1561.91291 | M165: 701.7915971 | N165: 972.8669019 | P165: Hija 59 años | Q165: 807.7702062 | R165: 1221.534341 | S165: 1666.970801 | T165: 748.9957302 | U165: 1038.30419
B166: Hija 60 años | C166: 9350.9998 | D166: 14700.16438 | E166: 19453.15068 | F166: 8670 | G166: 12495.13973 | I166: Hija 60 años | J166: 795.9312412 | K166: 1251.237337 | L166: 1655.798385 | M166: 737.9664217 | N166: 1063.551736 | P166: Hija 60 años | Q166: 849.4674255 | R166: 1335.398467 | S166: 1767.171231 | T166: 787.6037576 | U166: 1135.088697
B167: Hija 61 años | C167: 9995.403197 | D167: 15542.46575 | E167: 21057.53425 | F167: 9265 | G167: 13211.09589 | I167: Hija 61 años | J167: 850.7810762 | K167: 1322.9317 | L167: 1792.359077 | M167: 788.6111761 | N167: 1124.491945 | P167: Hija 61 años | Q167: 908.0065878 | R167: 1411.915159 | S167: 1912.917312 | T167: 841.6549958 | U167: 1200.127885
B168: Hija 62 años | C168: 10965.59494 | D168: 16936.27397 | E168: 22661.91781 | F168: 10166 | G168: 14395.83288 | I168: Hija 62 años | J168: 933.3611143 | K168: 1441.568801 | L168: 1928.919769 | M168: 865.3018043 | N168: 1225.33348 | P168: Hija 62 años | Q168: 996.1411511 | R168: 1538.532067 | S168: 2058.663393 | T168: 923.5040138 | U168: 1307.752257
B169: Hija 63 años | C169: 11919.59632 | D169: 18149.58904 | E169: 24216.16438 | F169: 11050 | G169: 15427.15068 | I169: Hija 63 años | J169: 1014.563073 | K169: 1544.842824 | L169: 2061.212939 | M169: 940.5454394 | N169: 1313.1164 | P169: Hija 63 años | Q169: 1082.804943 | R169: 1648.752541 | S169: 2199.854909 | T169: 1003.808711 | U169: 1401.43966
B170: Hija 64 años | C170: =C69 -> 13019.40172 | D170: 19593.53425 | E170: 25870.68493 | F170: 12070 | G170: 16654.50411 | I170: Hija 64 años | J170: 1108.175467 | K170: 1667.747446 | L170: 2202.041152 | M170: 1027.365018 | N170: 1417.585329 | P170: Hija 64 años | Q170: 1182.713924 | R170: 1779.924013 | S170: 2350.155555 | T170: 1096.467976 | U170: 1512.935411
B171: Hija 65 años | C171: 14166.00176 | D171: 21318.24658 | E171: 27475.06849 | F171: 13132.5 | G171: 18120.50959 | I171: Hija 65 años | J171: 1205.770891 | K171: 1814.550189 | L171: 2338.601843 | M171: 1117.80208 | N171: 1542.367661 | P171: Hija 65 años | Q171: 1286.873842 | R171: 1936.60105 | S171: 2495.901636 | T171: 1192.988045 | U171: 1646.110893
B172: Hija 66 años | C172: 15222.59377 | D172: 22962.73973 | E172: 32057.58904 | F172: 14110 | G172: 19518.32877 | I172: Hija 66 años | J172: 1295.705082 | K172: 1954.524898 | L172: 2728.653319 | M172: 1201.004176 | N172: 1661.346164 | P172: Hija 66 años | Q172: 1382.857215 | R172: 2085.990783 | S172: 2912.18888 | T172: 1281.786507 | U172: 1773.092166
B173: Hija 67 años | C173: 16344.00006 | D173: 25279.06849 | E173: 33992.87671 | F173: 15147 | G173: 21487.20822 | I173: Hija 67 años | J173: 1391.156083 | K173: 2151.684397 | L173: 2893.379653 | M173: 1289.270749 | N173: 1828.931737 | P173: Hija 67 años | Q173: 1484.728473 | R173: 2296.411688 | S173: 3087.99509 | T173: 1375.990094 | U173: 1951.949935
B174: Hija 68 años | C174: 17611.20094 | D174: 27735.78082 | E174: 36178.84932 | F174: 16320 | G174: 23575.4137 | I174: Hija 68 años | J174: 1499.016717 | K174: 2360.792956 | L174: 3079.443595 | M174: 1389.113264 | N174: 2006.674012 | P174: Hija 68 años | Q174: 1599.844064 | R174: 2519.585374 | S174: 3286.574125 | T174: 1482.54825 | U174: 2141.647568
B175: Hija 69 años | C175: 18894.60108 | D175: 29781.36986 | E175: 39528 | F175: 17510 | G175: 25314.16438 | I175: Hija 69 años | J175: 1608.256188 | K175: 2534.907838 | L175: 3364.514039 | M175: 1490.402773 | N175: 2154.671662 | P175: Hija 69 años | Q175: 1716.431235 | R175: 2705.411627 | S175: 3590.819069 | T175: 1590.650726 | U175: 2299.599883
B176: Hija 70 años | C176: 20179.79667 | D176: 31606.35616 | E176: 42486.08219 | F176: 18700 | G176: 26865.40274 | I176: Hija 70 años | J176: 1717.648482 | K176: 2690.245624 | L176: 3616.297814 | M176: 1591.692282 | N176: 2286.708781 | P176: Hija 70 años | Q176: 1833.181509 | R176: 2871.197794 | S176: 3859.538406 | T176: 1698.753203 | U176: 2440.518125
B177: Hija 71 años | C177: 21466.79769 | D177: 34313.75342 | E177: 46095.94521 | F177: 19890 | G177: 29166.69041 | I177: Hija 71 años | J177: 1827.194449 | K177: 2920.691791 | L177: 3923.55937 | M177: 1692.981791 | N177: 2482.588023 | P177: Hija 71 años | Q177: 1950.095792 | R177: 3117.144306 | S177: 4187.467088 | T177: 1806.855679 | U177: 2649.57266
B178: Hija 72 años | C178: 21466.79769 | D178: 34313.75342 | E178: 46095.94521 | F178: 19890 | G178: 29166.69041 | I178: Hija 72 años | J178: 1827.194449 | K178: 2920.691791 | L178: 3923.55937 | M178: 1692.981791 | N178: 2482.588023 | P178: Hija 72 años | Q178: 1950.095792 | R178: 3117.144306 | S178: 4187.467088 | T178: 1806.855679 | U178: 2649.57266
B179: Hija 73 años | C179: 21466.79769 | D179: 34313.75342 | E179: 46095.94521 | F179: 19890 | G179: 29166.69041 | I179: Hija 73 años | J179: 1827.194449 | K179: 2920.691791 | L179: 3923.55937 | M179: 1692.981791 | N179: 2482.588023 | P179: Hija 73 años | Q179: 1950.095792 | R179: 3117.144306 | S179: 4187.467088 | T179: 1806.855679 | U179: 2649.57266
B180: Hija 74 años | C180: 21466.79769 | D180: 34313.75342 | E180: 46095.94521 | F180: 19890 | G180: 29166.69041 | I180: Hija 74 años | J180: 1827.194449 | K180: 2920.691791 | L180: 3923.55937 | M180: 1692.981791 | N180: 2482.588023 | P180: Hija 74 años | Q180: 1950.095792 | R180: 3117.144306 | S180: 4187.467088 | T180: 1806.855679 | U180: 2649.57266
B181: Hija 75 años | C181: 21466.79769 | D181: 34313.75342 | E181: 46095.94521 | F181: 19890 | G181: 29166.69041 | I181: Hija 75 años | J181: 1827.194449 | K181: 2920.691791 | L181: 3923.55937 | M181: 1692.981791 | N181: 2482.588023 | P181: Hija 75 años | Q181: 1950.095792 | R181: 3117.144306 | S181: 4187.467088 | T181: 1806.855679 | U181: 2649.57266
B182: Hija 76 años | C182: 22930.2009 | D182: 37853.42466 | E182: 52533.53425 | F182: 21250 | G182: 32175.41096 | I182: Hija 76 años | J182: 1951.755283 | K182: 3221.978817 | L182: 4471.509145 | M182: 1808.74123 | N182: 2738.681994 | P182: Hija 76 años | Q182: 2083.034878 | R182: 3438.696597 | S182: 4772.273238 | T182: 1930.401367 | U182: 2922.892108
B183: Hija 77 años | C183: 22930.2009 | D183: 37853.42466 | E183: 52533.53425 | F183: 21250 | G183: 32175.41096 | I183: Hija 77 años | J183: 1951.755283 | K183: 3221.978817 | L183: 4471.509145 | M183: 1808.74123 | N183: 2738.681994 | P183: Hija 77 años | Q183: 2083.034878 | R183: 3438.696597 | S183: 4772.273238 | T183: 1930.401367 | U183: 2922.892108
B184: Hija 78 años | C184: 22930.2009 | D184: 37853.42466 | E184: 52533.53425 | F184: 21250 | G184: 32175.41096 | I184: Hija 78 años | J184: 1951.755283 | K184: 3221.978817 | L184: 4471.509145 | M184: 1808.74123 | N184: 2738.681994 | P184: Hija 78 años | Q184: 2083.034878 | R184: 3438.696597 | S184: 4772.273238 | T184: 1930.401367 | U184: 2922.892108
B185: Hija 79 años | C185: 22930.2009 | D185: 37853.42466 | E185: 52533.53425 | F185: 21250 | G185: 32175.41096 | I185: Hija 79 años | J185: 1951.755283 | K185: 3221.978817 | L185: 4471.509145 | M185: 1808.74123 | N185: 2738.681994 | P185: Hija 79 años | Q185: 2083.034878 | R185: 3438.696597 | S185: 4772.273238 | T185: 1930.401367 | U185: 2922.892108
B186: Hija 80 años | C186: =C85 -> 22930.2009 | D186: 37853.42466 | E186: 52533.53425 | F186: 21250 | G186: 32175.41096 | I186: Hija 80 años | J186: 1951.755283 | K186: 3221.978817 | L186: 4471.509145 | M186: 1808.74123 | N186: 2738.681994 | P186: Hija 80 años | Q186: 2083.034878 | R186: 3438.696597 | S186: 4772.273238 | T186: 1930.401367 | U186: 2922.892108
B187: Hija 81 años | C187: 24755.40435 | D187: 41924.54795 | E187: 57938.30137 | F187: 22950 | G187: 35635.86575 | I187: Hija 81 años | J187: 2107.111553 | K187: 3568.501572 | L187: 4931.547975 | M187: 1953.440528 | N187: 3033.226336 | P187: Hija 81 años | Q187: 2248.840771 | R187: 3808.527278 | S187: 5263.255348 | T187: 2084.833476 | U187: 3237.248186
B188: Hija 82 años | C188: 24755.40435 | D188: 41924.54795 | E188: 57938.30137 | F188: 22950 | G188: 35635.86575 | I188: Hija 82 años | J188: =C188*$J$2 -> 2107.111553 | K188: =D188*$J$2 -> 3568.501572 | L188: =E188*$J$2 -> 4931.547975 | M188: =F188*$J$2 -> 1953.440528 | N188: =G188*$J$2 -> 3033.226336 | P188: Hija 82 años | Q188: =C188*$Q$2 -> 2248.840771 | R188: =D188*$Q$2 -> 3808.527278 | S188: =E188*$Q$2 -> 5263.255348 | T188: =F188*$Q$2 -> 2084.833476 | U188: =G188*$Q$2 -> 3237.248186
B189: Hija 83 años | C189: 24755.40435 | D189: 41924.54795 | E189: 57938.30137 | F189: 22950 | G189: 35635.86575 | I189: Hija 83 años | J189: 2107.111553 | K189: 3568.501572 | L189: 4931.547975 | M189: 1953.440528 | N189: 3033.226336 | P189: Hija 83 años | Q189: 2248.840771 | R189: 3808.527278 | S189: 5263.255348 | T189: 2084.833476 | U189: 3237.248186
B190: Hija 84 años | C190: 24755.40435 | D190: 41924.54795 | E190: 57938.30137 | F190: 22950 | G190: 35635.86575 | I190: Hija 84 años | J190: 2107.111553 | K190: 3568.501572 | L190: 4931.547975 | M190: 1953.440528 | N190: 3033.226336 | P190: Hija 84 años | Q190: 2248.840771 | R190: 3808.527278 | S190: 5263.255348 | T190: 2084.833476 | U190: 3237.248186
B191: Hija 85 años | C191: 24755.40435 | D191: 41924.54795 | E191: 57938.30137 | F191: 22950 | G191: 35635.86575 | I191: Hija 85 años | J191: 2107.111553 | K191: 3568.501572 | L191: 4931.547975 | M191: 1953.440528 | N191: 3033.226336 | P191: Hija 85 años | Q191: 2248.840771 | R191: 3808.527278 | S191: 5263.255348 | T191: 2084.833476 | U191: 3237.248186
B192: Hija 86 años | C192: 24755.40435 | D192: 41924.54795 | E192: 57938.30137 | F192: 22950 | G192: 35635.86575 | I192: Hija 86 años | J192: 2107.111553 | K192: 3568.501572 | L192: 4931.547975 | M192: 1953.440528 | N192: 3033.226336 | P192: Hija 86 años | Q192: 2248.840771 | R192: 3808.527278 | S192: 5263.255348 | T192: 2084.833476 | U192: 3237.248186
B193: Hija 87 años | C193: 24755.40435 | D193: 41924.54795 | E193: 57938.30137 | F193: 22950 | G193: 35635.86575 | I193: Hija 87 años | J193: 2107.111553 | K193: 3568.501572 | L193: 4931.547975 | M193: 1953.440528 | N193: 3033.226336 | P193: Hija 87 años | Q193: 2248.840771 | R193: 3808.527278 | S193: 5263.255348 | T193: 2084.833476 | U193: 3237.248186
B194: Hija 88 años | C194: 24755.40435 | D194: 41924.54795 | E194: 57938.30137 | F194: 22950 | G194: 35635.86575 | I194: Hija 88 años | J194: 2107.111553 | K194: 3568.501572 | L194: 4931.547975 | M194: 1953.440528 | N194: 3033.226336 | P194: Hija 88 años | Q194: 2248.840771 | R194: 3808.527278 | S194: 5263.255348 | T194: 2084.833476 | U194: 3237.248186
B195: Hija 89 años | C195: 24755.40435 | D195: 41924.54795 | E195: 57938.30137 | F195: 22950 | G195: 35635.86575 | I195: Hija 89 años | J195: 2107.111553 | K195: 3568.501572 | L195: 4931.547975 | M195: 1953.440528 | N195: 3033.226336 | P195: Hija 89 años | Q195: 2248.840771 | R195: 3808.527278 | S195: 5263.255348 | T195: 2084.833476 | U195: 3237.248186
B196: Hija 90 años | C196: 24755.40435 | D196: 41924.54795 | E196: 57938.30137 | F196: 22950 | G196: 35635.86575 | I196: Hija 90 años | J196: 2107.111553 | K196: 3568.501572 | L196: 4931.547975 | M196: 1953.440528 | N196: 3033.226336 | P196: Hija 90 años | Q196: 2248.840771 | R196: 3808.527278 | S196: 5263.255348 | T196: 2084.833476 | U196: 3237.248186
B197: Hija 91 años | C197: 24755.40435 | D197: 41924.54795 | E197: 57938.30137 | F197: 22950 | G197: 35635.86575 | I197: Hija 91 años | J197: 2107.111553 | K197: 3568.501572 | L197: 4931.547975 | M197: 1953.440528 | N197: 3033.226336 | P197: Hija 91 años | Q197: 2248.840771 | R197: 3808.527278 | S197: 5263.255348 | T197: 2084.833476 | U197: 3237.248186
B198: Hija 92 años | C198: 24755.40435 | D198: 41924.54795 | E198: 57938.30137 | F198: 22950 | G198: 35635.86575 | I198: Hija 92 años | J198: 2107.111553 | K198: 3568.501572 | L198: 4931.547975 | M198: 1953.440528 | N198: 3033.226336 | P198: Hija 92 años | Q198: 2248.840771 | R198: 3808.527278 | S198: 5263.255348 | T198: 2084.833476 | U198: 3237.248186
B199: Hija 93 años | C199: 24755.40435 | D199: 41924.54795 | E199: 57938.30137 | F199: 22950 | G199: 35635.86575 | I199: Hija 93 años | J199: 2107.111553 | K199: 3568.501572 | L199: 4931.547975 | M199: 1953.440528 | N199: 3033.226336 | P199: Hija 93 años | Q199: 2248.840771 | R199: 3808.527278 | S199: 5263.255348 | T199: 2084.833476 | U199: 3237.248186
B200: Hija 94 años | C200: 24755.40435 | D200: 41924.54795 | E200: 57938.30137 | F200: 22950 | G200: 35635.86575 | I200: Hija 94 años | J200: 2107.111553 | K200: 3568.501572 | L200: 4931.547975 | M200: 1953.440528 | N200: 3033.226336 | P200: Hija 94 años | Q200: 2248.840771 | R200: 3808.527278 | S200: 5263.255348 | T200: 2084.833476 | U200: 3237.248186
... 107 more rows
